Workbook

Sheet Home
B2: Home Page / Table of Contents
B4: Data Entry and Summary Analysis | D4: Non-Interest Items
B5: Current Year Actual and Upcoming Budget Summary Financials | D5: Non-Interest Income
B6: Summary Budget Analysis (Rate Vs. Volume) | D6: Non-Interest Expense
B8: Balance Growth | D8: Efficiency and Economy of Scale
B9: Loan Balance | D9: Efficiency Ratio
B10: Relationship Deposit Balance | D10: Economy of Scale Ratio
B11: Rate Sensitive Funds Balance
D12: Asset Quality
B13: Product Mix | D13: Net Charge-Offs
B14: Loans as Percent of Assets | D14: Provision for Loan Loss Expense
B15: Relationship Deposits as Percent of Assets
B16: Non-Interest Income as Percent of Non-Interest Expense | D16: Reserves
D17: Loan Loss Reserve as Percent of Loans
B18: Interest Rates | D18: Equity plus Loan Loss Reserve as Percent of Loans
B19: Loan Yield | D19: Equity as Percent of Assets
B20: Cash and Surplus Funds Yield
B21: Relationship Deposit Cost | D21: Earnings
B22: Rate Sensitive Funds Cost | D22: Pretax Net Income Excluding Extraordinary Items
B23: Net Interest Margin | D23: Return on Assets

Sheet Data
C2: 2 | E2: 4 | F2: 5 | G2: 6 | H2: 7 | I2: 8 | J2: 9 | K2: 10 | L2: 11 | M2: 12 | N2: 13 | O2: 14 | P2: 15 | Q2: 16 | S2: 18 | T2: 19 | U2: 20 | V2: 21 | W2: 22 | X2: 23 | Y2: 24 | Z2: 25 | AA2: 26 | AB2: 27 | AC2: 28 | AD2: 29 | AF2: 31 | AG2: 32 | AH2: 33 | AI2: 34 | AJ2: 35 | AK2: 36
C4: Please enter all values in THOUSANDS of dollars. | E4: Current Year Performance | S4: Upcoming Budget
E6: 2021-12-31 | F6: =EOMONTH(E6,1) -> 2022-01-31 | G6: =EOMONTH(F6,1) -> 2022-02-28 | H6: 2022-03-31 | I6: 2022-04-30 | J6: 2022-05-31 | K6: 2022-06-30 | L6: 2022-07-31 | M6: 2022-08-31 | N6: 2022-09-30 | O6: 2022-10-31 | P6: 2022-11-30 | Q6: 2022-12-31 | S6: =EOMONTH(Q6,1) -> 2023-01-31 | T6: 2023-02-28 | U6: 2023-03-31 | V6: 2023-04-30 | W6: 2023-05-31 | X6: 2023-06-30 | Y6: 2023-07-31 | Z6: 2023-08-31 | AA6: 2023-09-30 | AB6: 2023-10-31 | AC6: 2023-11-30 | AD6: 2023-12-31 | AF6: Prior Avg | AG6: Bud Avg | AH6: Change | AI6: Pct Chg | AJ6: End Chg | AK6: Pct Chg
B8: B1 | C8: Gross Loans | AF8: =IFERROR(AVERAGE(E8:Q8),0) -> 0 | AG8: =IFERROR(AVERAGE(Q8,S8:AD8),0) -> 0 | AH8: =AG8-AF8 -> 0 | AI8: =IFERROR(AH8/AF8,0) -> 0.0% | AJ8: =AD8-Q8 -> 0 | AK8: =IFERROR(AJ8/Q8,0) -> 0.0%
B9: B2 | C9: Cash and Surplus Funds | AF9: =IFERROR(AVERAGE(E9:Q9),0) -> 0 | AG9: =IFERROR(AVERAGE(Q9,S9:AD9),0) -> 0 | AH9: =AG9-AF9 -> 0 | AI9: =IFERROR(AH9/AF9,0) -> 0.0% | AJ9: =AD9-Q9 -> 0 | AK9: =IFERROR(AJ9/Q9,0) -> 0.0%
B10: B3 | C10: Loan Loss Reserve | AF10: 0 | AG10: =IFERROR(AVERAGE(Q10,S10:AD10),0) -> 0 | AH10: =AG10-AF10 -> 0 | AI10: 0.0% | AJ10: =AD10-Q10 -> 0 | AK10: 0.0%
B11: B4 | C11: Fixed and Other Assets | AF11: 0 | AG11: =IFERROR(AVERAGE(Q11,S11:AD11),0) -> 0 | AH11: =AG11-AF11 -> 0 | AI11: 0.0% | AJ11: =AD11-Q11 -> 0 | AK11: 0.0%
B12: B5 | C12: Total Assets | E12: =SUM(E8,E9,E11)-E10 -> 0 | F12: =SUM(F8,F9,F11)-F10 -> 0 | G12: 0 | H12: 0 | I12: 0 | J12: 0 | K12: 0 | L12: 0 | M12: 0 | N12: 0 | O12: 0 | P12: 0 | Q12: 0 | S12: 0 | T12: 0 | U12: 0 | V12: 0 | W12: 0 | X12: 0 | Y12: 0 | Z12: 0 | AA12: 0 | AB12: 0 | AC12: 0 | AD12: 0 | AF12: =AVERAGE(E12:Q12) -> 0 | AG12: =AVERAGE(Q12,S12:AD12) -> 0 | AH12: =AG12-AF12 -> 0 | AI12: 0.0% | AJ12: =AD12-Q12 -> 0 | AK12: 0.0%
B14: B6 | C14: Relationship Deposits | AF14: =IFERROR(AVERAGE(E14:Q14),0) -> 0 | AG14: =IFERROR(AVERAGE(Q14,S14:AD14),0) -> 0 | AH14: =AG14-AF14 -> 0 | AI14: 0.0% | AJ14: =AD14-Q14 -> 0 | AK14: 0.0%
B15: B7 | C15: Rate Sensitive Funds | AF15: 0 | AG15: =IFERROR(AVERAGE(Q15,S15:AD15),0) -> 0 | AH15: =AG15-AF15 -> 0 | AI15: 0.0% | AJ15: =AD15-Q15 -> 0 | AK15: 0.0%
B16: B8 | C16: Other Liabilities | AF16: 0 | AG16: =IFERROR(AVERAGE(Q16,S16:AD16),0) -> 0 | AH16: =AG16-AF16 -> 0 | AI16: 0.0% | AJ16: =AD16-Q16 -> 0 | AK16: 0.0%
B17: B9 | C17: Equity | AF17: 0 | AG17: =IFERROR(AVERAGE(Q17,S17:AD17),0) -> 0 | AH17: =AG17-AF17 -> 0 | AI17: 0.0% | AJ17: =AD17-Q17 -> 0 | AK17: 0.0%
B18: B10 | C18: Total Liab + Equity | E18: =SUM(E14:E17) -> 0 | F18: =SUM(F14:F17) -> 0 | G18: 0 | H18: 0 | I18: 0 | J18: 0 | K18: 0 | L18: 0 | M18: 0 | N18: 0 | O18: 0 | P18: 0 | Q18: 0 | S18: 0 | T18: 0 | U18: 0 | V18: 0 | W18: 0 | X18: 0 | Y18: 0 | Z18: 0 | AA18: 0 | AB18: 0 | AC18: 0 | AD18: 0
C20: Balance Test | E20: =ROUND(E18-E12,0) -> 0 | F20: =ROUND(F18-F12,0) -> 0 | G20: 0 | H20: 0 | I20: 0 | J20: 0 | K20: 0 | L20: 0 | M20: 0 | N20: 0 | O20: 0 | P20: 0 | Q20: 0 | S20: 0 | T20: 0 | U20: 0 | V20: 0 | W20: 0 | X20: 0 | Y20: 0 | Z20: 0 | AA20: 0 | AB20: 0 | AC20: 0 | AD20: 0 | AF20: Prior Yr | AG20: Budget | AH20: Change
B22: I1 | C22: Loan Interest | AF22: =SUM(E22:Q22) -> 0 | AG22: =SUM(S22:AD22) -> 0 | AH22: =AG22-AF22 -> 0
B23: I2 | C23: Surplus Funds Interest | AF23: =SUM(E23:Q23) -> 0 | AG23: =SUM(S23:AD23) -> 0 | AH23: =AG23-AF23 -> 0
B24: I3 | C24: Relationship Deposit Interest | AF24: =SUM(E24:Q24) -> 0 | AG24: =SUM(S24:AD24) -> 0 | AH24: =AG24-AF24 -> 0
B25: I4 | C25: Rate Sensitive Funds Interest | AF25: =SUM(E25:Q25) -> 0 | AG25: =SUM(S25:AD25) -> 0 | AH25: =AG25-AF25 -> 0
B26: I5 | C26: Net Interest Income | F26: =SUM(F22:F23)-SUM(F24:F25) -> 0 | G26: 0 | H26: 0 | I26: 0 | J26: 0 | K26: 0 | L26: 0 | M26: 0 | N26: 0 | O26: 0 | P26: 0 | Q26: 0 | S26: 0 | T26: 0 | U26: 0 | V26: 0 | W26: 0 | X26: 0 | Y26: 0 | Z26: 0 | AA26: 0 | AB26: 0 | AC26: 0 | AD26: 0 | AF26: =SUM(E26:Q26) -> 0 | AG26: =SUM(S26:AD26) -> 0 | AH26: =AG26-AF26 -> 0
B28: I6 | C28: Non-Interest Income | AF28: =SUM(E28:Q28) -> 0 | AG28: =SUM(S28:AD28) -> 0 | AH28: =AG28-AF28 -> 0
B29: I7 | C29: Non-Interest Expense | AF29: =SUM(E29:Q29) -> 0 | AG29: =SUM(S29:AD29) -> 0 | AH29: =AG29-AF29 -> 0
B31: I8 | C31: Net Charge-Offs | AF31: =SUM(E31:Q31) -> 0 | AG31: =SUM(S31:AD31) -> 0 | AH31: =AG31-AF31 -> 0
B32: I9 | C32: Provision for Loan Loss Expense | AF32: =SUM(E32:Q32) -> 0 | AG32: =SUM(S32:AD32) -> 0 | AH32: =AG32-AF32 -> 0
C34: Operating Net Income | F34: =F26+F28-F29-F32 -> 0 | G34: =G26+G28-G29-G32 -> 0 | H34: 0 | I34: 0 | J34: 0 | K34: 0 | L34: 0 | M34: 0 | N34: 0 | O34: 0 | P34: 0 | Q34: 0 | S34: 0 | T34: 0 | U34: 0 | V34: 0 | W34: 0 | X34: 0 | Y34: 0 | Z34: 0 | AA34: 0 | AB34: 0 | AC34: 0 | AD34: 0
B36: I10 | C36: Extraordinary Inc(Exp)
B38: I11 | C38: Pretax Net Income | F38: =SUM(F26,F28,F36)-SUM(F29,F32) -> 0 | G38: 0 | H38: 0 | I38: 0 | J38: 0 | K38: 0 | L38: 0 | M38: 0 | N38: 0 | O38: 0 | P38: 0 | Q38: 0 | S38: 0 | T38: 0 | U38: 0 | V38: 0 | W38: 0 | X38: 0 | Y38: 0 | Z38: 0 | AA38: 0 | AB38: 0 | AC38: 0 | AD38: 0
F40: 1 | G40: 2 | H40: 3 | I40: 4 | J40: 5 | K40: 6 | L40: 7 | M40: 8 | N40: 9 | O40: 10 | P40: 11 | Q40: 12 | S40: 1 | T40: 2 | U40: 3 | V40: 4 | W40: 5 | X40: 6 | Y40: 7 | Z40: 8 | AA40: 9 | AB40: 10 | AC40: 11 | AD40: 12
F41: =EOMONTH(F6,0)-EOMONTH(F6,-1) -> 31 | G41: =EOMONTH(G6,0)-EOMONTH(G6,-1) -> 28 | H41: 31 | I41: 30 | J41: 31 | K41: 30 | L41: 31 | M41: 31 | N41: 30 | O41: 31 | P41: 30 | Q41: 31 | S41: =EOMONTH(S6,0)-EOMONTH(S6,-1) -> 31 | T41: =EOMONTH(T6,0)-EOMONTH(T6,-1) -> 28 | U41: 31 | V41: 30 | W41: 31 | X41: 30 | Y41: 31 | Z41: 31 | AA41: 30 | AB41: 31 | AC41: 30 | AD41: 31 | AF41: Prior Yr | AG41: Budget | AH41: Change
B43: R1 | C43: Loan Yield | F43: =IFERROR(F22/F$41*SUM($F$41:$Q$41)/AVERAGE(E8:F8),0) -> 0.00% | G43: 0.00% | H43: 0.00% | I43: 0.00% | J43: 0.00% | K43: 0.00% | L43: 0.00% | M43: 0.00% | N43: 0.00% | O43: 0.00% | P43: 0.00% | Q43: 0.00% | S43: =IFERROR(S22/S$41*SUM($S$41:$AD$41)/AVERAGE(Q8,S8),0) -> 0.00% | T43: =IFERROR(T22/T$41*SUM($S$41:$AD$41)/AVERAGE(S8:T8),0) -> 0.00% | U43: 0.00% | V43: 0.00% | W43: 0.00% | X43: 0.00% | Y43: 0.00% | Z43: 0.00% | AA43: 0.00% | AB43: 0.00% | AC43: 0.00% | AD43: 0.00% | AF43: =IFERROR(SUMPRODUCT(F43:Q43,F8:Q8)/SUM(F8:Q8),0) -> 0.00% | AG43: =IFERROR(SUMPRODUCT(S43:AD43,S8:AD8)/SUM(S8:AD8),0) -> 0.00% | AH43: =AG43-AF43 -> 0.00%
B44: R2 | C44: Cash and Surplus Funds Yield | F44: =IFERROR(F23/F$41*SUM($F$41:$Q$41)/AVERAGE(E9:F9),0) -> 0.00% | G44: 0.00% | H44: 0.00% | I44: 0.00% | J44: 0.00% | K44: 0.00% | L44: 0.00% | M44: 0.00% | N44: 0.00% | O44: 0.00% | P44: 0.00% | Q44: 0.00% | S44: =IFERROR(S23/S$41*SUM($S$41:$AD$41)/AVERAGE(Q9,S9),0) -> 0.00% | T44: =IFERROR(T23/T$41*SUM($S$41:$AD$41)/AVERAGE(S9:T9),0) -> 0.00% | U44: 0.00% | V44: 0.00% | W44: 0.00% | X44: 0.00% | Y44: 0.00% | Z44: 0.00% | AA44: 0.00% | AB44: 0.00% | AC44: 0.00% | AD44: 0.00% | AF44: =IFERROR(SUMPRODUCT(F44:Q44,F9:Q9)/SUM(F9:Q9),0) -> 0.00% | AG44: =IFERROR(SUMPRODUCT(S44:AD44,S9:AD9)/SUM(S9:AD9),0) -> 0.00% | AH44: =AG44-AF44 -> 0.00%
B45: R3 | C45: Cost of Relationship Deposits | F45: =IFERROR(F24/F$41*SUM($F$41:$Q$41)/AVERAGE(E14:F14),0) -> 0.00% | G45: 0.00% | H45: 0.00% | I45: 0.00% | J45: 0.00% | K45: 0.00% | L45: 0.00% | M45: 0.00% | N45: 0.00% | O45: 0.00% | P45: 0.00% | Q45: 0.00% | S45: =IFERROR(S24/S$41*SUM($S$41:$AD$41)/AVERAGE(Q14,S14),0) -> 0.00% | T45: =IFERROR(T24/T$41*SUM($S$41:$AD$41)/AVERAGE(S14:T14),0) -> 0.00% | U45: 0.00% | V45: 0.00% | W45: 0.00% | X45: 0.00% | Y45: 0.00% | Z45: 0.00% | AA45: 0.00% | AB45: 0.00% | AC45: 0.00% | AD45: 0.00% | AF45: =IFERROR(SUMPRODUCT(F45:Q45,F14:Q14)/SUM(F14:Q14),0) -> 0.00% | AG45: =IFERROR(SUMPRODUCT(S45:AD45,S14:AD14)/SUM(S14:AD14),0) -> 0.00% | AH45: 0.00%
B46: R4 | C46: Cost of Rate Sensitive Funds | F46: =IFERROR(F25/F$41*SUM($F$41:$Q$41)/AVERAGE(E15:F15),0) -> 0.00% | G46: 0.00% | H46: 0.00% | I46: 0.00% | J46: 0.00% | K46: 0.00% | L46: 0.00% | M46: 0.00% | N46: 0.00% | O46: 0.00% | P46: 0.00% | Q46: 0.00% | S46: =IFERROR(S25/S$41*SUM($S$41:$AD$41)/AVERAGE(Q15,S15),0) -> 0.00% | T46: =IFERROR(T25/T$41*SUM($S$41:$AD$41)/AVERAGE(S15:T15),0) -> 0.00% | U46: 0.00% | V46: 0.00% | W46: 0.00% | X46: 0.00% | Y46: 0.00% | Z46: 0.00% | AA46: 0.00% | AB46: 0.00% | AC46: 0.00% | AD46: 0.00% | AF46: =IFERROR(SUMPRODUCT(F46:Q46,F15:Q15)/SUM(F15:Q15),0) -> 0.00% | AG46: =IFERROR(SUMPRODUCT(S46:AD46,S15:AD15)/SUM(S15:AD15),0) -> 0.00% | AH46: 0.00%
B47: R5 | C47: Net Interest Margin | F47: =IFERROR(F26/F$41*SUM($F$41:$Q$41)/AVERAGE(E12:F12),0) -> 0.00% | G47: 0.00% | H47: 0.00% | I47: 0.00% | J47: 0.00% | K47: 0.00% | L47: 0.00% | M47: 0.00% | N47: 0.00% | O47: 0.00% | P47: 0.00% | Q47: 0.00% | S47: =IFERROR(S26/S$41*SUM($S$41:$AD$41)/AVERAGE(Q12,S12),0) -> 0.00% | T47: =IFERROR(T26/T$41*SUM($S$41:$AD$41)/AVERAGE(S12:T12),0) -> 0.00% | U47: 0.00% | V47: 0.00% | W47: 0.00% | X47: 0.00% | Y47: 0.00% | Z47: 0.00% | AA47: 0.00% | AB47: 0.00% | AC47: 0.00% | AD47: 0.00% | AF47: =IFERROR(SUMPRODUCT(F47:Q47,F12:Q12)/SUM(F12:Q12),0) -> 0.00% | AG47: =IFERROR(SUMPRODUCT(S47:AD47,S12:AD12)/SUM(S12:AD12),0) -> 0.00% | AH47: =AG47-AF47 -> 0.00%
B49: S1 | C49: Loan Loss Reserve | F49: =IFERROR(F10/F8,0) -> 0.00% | G49: =IFERROR(G10/G8,0) -> 0.00% | H49: 0.00% | I49: 0.00% | J49: 0.00% | K49: 0.00% | L49: 0.00% | M49: 0.00% | N49: 0.00% | O49: 0.00% | P49: 0.00% | Q49: 0.00% | S49: 0.00% | T49: 0.00% | U49: 0.00% | V49: 0.00% | W49: 0.00% | X49: 0.00% | Y49: 0.00% | Z49: 0.00% | AA49: 0.00% | AB49: 0.00% | AC49: 0.00% | AD49: 0.00%
B50: S2 | C50: Equity + Loan Loss Reserve as Percent of Loans | F50: =IFERROR(SUM(F10,F17)/F8,0) -> 0.0% | G50: =IFERROR(SUM(G10,G17)/G8,0) -> 0.0% | H50: 0.0% | I50: 0.0% | J50: 0.0% | K50: 0.0% | L50: 0.0% | M50: 0.0% | N50: 0.0% | O50: 0.0% | P50: 0.0% | Q50: 0.0% | S50: =IFERROR(SUM(S10,S17)/S8,0) -> 0.0% | T50: =IFERROR(SUM(T10,T17)/T8,0) -> 0.0% | U50: 0.0% | V50: 0.0% | W50: 0.0% | X50: 0.0% | Y50: 0.0% | Z50: 0.0% | AA50: 0.0% | AB50: 0.0% | AC50: 0.0% | AD50: 0.0%
B51: S3 | C51: Equity as Percent of Assets | F51: =IFERROR(F17/F12,0) -> 0.0% | G51: =IFERROR(G17/G12,0) -> 0.0% | H51: 0.0% | I51: 0.0% | J51: 0.0% | K51: 0.0% | L51: 0.0% | M51: 0.0% | N51: 0.0% | O51: 0.0% | P51: 0.0% | Q51: 0.0% | S51: 0.0% | T51: 0.0% | U51: 0.0% | V51: 0.0% | W51: 0.0% | X51: 0.0% | Y51: 0.0% | Z51: 0.0% | AA51: 0.0% | AB51: 0.0% | AC51: 0.0% | AD51: 0.0%
B53: Y1 | C53: Efficiency Ratio | F53: =IFERROR(F29/SUM(F26,F28),0) -> 0.0% | G53: =IFERROR(G29/SUM(G26,G28),0) -> 0.0% | H53: 0.0% | I53: 0.0% | J53: 0.0% | K53: 0.0% | L53: 0.0% | M53: 0.0% | N53: 0.0% | O53: 0.0% | P53: 0.0% | Q53: 0.0% | S53: 0.0% | T53: 0.0% | U53: 0.0% | V53: 0.0% | W53: 0.0% | X53: 0.0% | Y53: 0.0% | Z53: 0.0% | AA53: 0.0% | AB53: 0.0% | AC53: 0.0% | AD53: 0.0% | AF53: =IFERROR(AF29/SUM(AF26,AF28),0) -> 0.0% | AG53: =IFERROR(AG29/SUM(AG26,AG28),0) -> 0.0% | AH53: =AG53-AF53 -> 0.0%
B54: Y2 | C54: Economy of Scale Ratio | F54: =IFERROR(((F29-F28)*12)/SUM(F8,F14),0) -> 0.00% | G54: =IFERROR(((G29-G28)*12)/SUM(G8,G14),0) -> 0.00% | H54: 0.00% | I54: 0.00% | J54: 0.00% | K54: 0.00% | L54: 0.00% | M54: 0.00% | N54: 0.00% | O54: 0.00% | P54: 0.00% | Q54: 0.00% | S54: 0.00% | T54: 0.00% | U54: 0.00% | V54: 0.00% | W54: 0.00% | X54: 0.00% | Y54: 0.00% | Z54: 0.00% | AA54: 0.00% | AB54: 0.00% | AC54: 0.00% | AD54: 0.00% | AF54: =IFERROR((AF29-AF28)/SUM(AF8,AF14),0) -> 0.00% | AG54: =IFERROR((AG29-AG28)/SUM(AG8,AG14),0) -> 0.00% | AH54: =AG54-AF54 -> 0.00%
B56: M1 | C56: Loans as Percent of Assets | F56: =IFERROR(F8/F$12,0) -> 0.0% | G56: 0.0% | H56: 0.0% | I56: 0.0% | J56: 0.0% | K56: 0.0% | L56: 0.0% | M56: 0.0% | N56: 0.0% | O56: 0.0% | P56: 0.0% | Q56: 0.0% | S56: =IFERROR(S8/S$12,0) -> 0.0% | T56: 0.0% | U56: 0.0% | V56: 0.0% | W56: 0.0% | X56: 0.0% | Y56: 0.0% | Z56: 0.0% | AA56: 0.0% | AB56: 0.0% | AC56: 0.0% | AD56: 0.0%
B57: M2 | C57: Relationship Deposits as Percent of Assets | F57: =IFERROR(F14/F$12,0) -> 0.0% | G57: 0.0% | H57: 0.0% | I57: 0.0% | J57: 0.0% | K57: 0.0% | L57: 0.0% | M57: 0.0% | N57: 0.0% | O57: 0.0% | P57: 0.0% | Q57: 0.0% | S57: =IFERROR(S14/S$12,0) -> 0.0% | T57: 0.0% | U57: 0.0% | V57: 0.0% | W57: 0.0% | X57: 0.0% | Y57: 0.0% | Z57: 0.0% | AA57: 0.0% | AB57: 0.0% | AC57: 0.0% | AD57: 0.0%
B58: M3 | C58: YTD Non-Int Inc as Percent of Non-Int Exp | F58: =IFERROR(SUM($F28:F28)/SUM($F29:F29),0) -> 0.0% | G58: =IFERROR(SUM($F28:G28)/SUM($F29:G29),0) -> 0.0% | H58: =IFERROR(SUM($F28:H28)/SUM($F29:H29),0) -> 0.0% | I58: =IFERROR(SUM($F28:I28)/SUM($F29:I29),0) -> 0.0% | J58: =IFERROR(SUM($F28:J28)/SUM($F29:J29),0) -> 0.0% | K58: =IFERROR(SUM($F28:K28)/SUM($F29:K29),0) -> 0.0% | L58: =IFERROR(SUM($F28:L28)/SUM($F29:L29),0) -> 0.0% | M58: =IFERROR(SUM($F28:M28)/SUM($F29:M29),0) -> 0.0% | N58: =IFERROR(SUM($F28:N28)/SUM($F29:N29),0) -> 0.0% | O58: =IFERROR(SUM($F28:O28)/SUM($F29:O29),0) -> 0.0% | P58: =IFERROR(SUM($F28:P28)/SUM($F29:P29),0) -> 0.0% | Q58: =IFERROR(SUM($F28:Q28)/SUM($F29:Q29),0) -> 0.0% | S58: =IFERROR(SUM($S28:S28)/SUM($S29:S29),0) -> 0.0% | T58: =IFERROR(SUM($S28:T28)/SUM($S29:T29),0) -> 0.0% | U58: =IFERROR(SUM($S28:U28)/SUM($S29:U29),0) -> 0.0% | V58: =IFERROR(SUM($S28:V28)/SUM($S29:V29),0) -> 0.0% | W58: =IFERROR(SUM($S28:W28)/SUM($S29:W29),0) -> 0.0% | X58: =IFERROR(SUM($S28:X28)/SUM($S29:X29),0) -> 0.0% | Y58: =IFERROR(SUM($S28:Y28)/SUM($S29:Y29),0) -> 0.0% | Z58: =IFERROR(SUM($S28:Z28)/SUM($S29:Z29),0) -> 0.0% | AA58: =IFERROR(SUM($S28:AA28)/SUM($S29:AA29),0) -> 0.0% | AB58: =IFERROR(SUM($S28:AB28)/SUM($S29:AB29),0) -> 0.0% | AC58: =IFERROR(SUM($S28:AC28)/SUM($S29:AC29),0) -> 0.0% | AD58: =IFERROR(SUM($S28:AD28)/SUM($S29:AD29),0) -> 0.0% | AF58: =IFERROR(AF28/AF29,0) -> 0.0% | AG58: =IFERROR(AG28/AG29,0) -> 0.0% | AH58: =AG58-AF58 -> 0.0%
B60: N1 | C60: Pretax Operating Net Income | F60: =F26+F28-F29-F32 -> 0 | G60: =G26+G28-G29-G32 -> 0 | H60: 0 | I60: 0 | J60: 0 | K60: 0 | L60: 0 | M60: 0 | N60: 0 | O60: 0 | P60: 0 | Q60: 0 | S60: 0 | T60: 0 | U60: 0 | V60: 0 | W60: 0 | X60: 0 | Y60: 0 | Z60: 0 | AA60: 0 | AB60: 0 | AC60: 0 | AD60: 0 | AF60: 0 | AG60: 0 | AH60: =AG60-AF60 -> 0
B61: N2 | C61: Pretax Operating ROA | F61: =IFERROR((F60*12)/F12,0) -> 0.00% | G61: =IFERROR((G60*12)/G12,0) -> 0.00% | H61: 0.00% | I61: 0.00% | J61: 0.00% | K61: 0.00% | L61: 0.00% | M61: 0.00% | N61: 0.00% | O61: 0.00% | P61: 0.00% | Q61: 0.00% | S61: =IFERROR((S60*12)/S12,0) -> 0.00% | T61: =IFERROR((T60*12)/T12,0) -> 0.00% | U61: =IFERROR((U60*12)/U12,0) -> 0.00% | V61: =IFERROR((V60*12)/V12,0) -> 0.00% | W61: =IFERROR((W60*12)/W12,0) -> 0.00% | X61: =IFERROR((X60*12)/X12,0) -> 0.00% | Y61: =IFERROR((Y60*12)/Y12,0) -> 0.00% | Z61: =IFERROR((Z60*12)/Z12,0) -> 0.00% | AA61: =IFERROR((AA60*12)/AA12,0) -> 0.00% | AB61: =IFERROR((AB60*12)/AB12,0) -> 0.00% | AC61: =IFERROR((AC60*12)/AC12,0) -> 0.00% | AD61: =IFERROR((AD60*12)/AD12,0) -> 0.00% | AF61: =IFERROR(AF60/AF12,0) -> 0.00% | AG61: =IFERROR(AG60/AG12,0) -> 0.00% | AH61: =AG61-AF61 -> 0.00%

Sheet RateVol
C3: =_xlfn.CONCAT(TEXT(Data!AD6,"yyy")," Budget Analysis") -> 2023 Budget Analysis
E5: =_xlfn.CONCAT("Actual ",TEXT(Data!Q6,"yyy")) -> Actual 2022 | F5: =_xlfn.CONCAT("Budget ",TEXT(Data!AD6,"yyy")) -> Budget 2023 | G5: Change | H5: Pct Chg | I5: Impact | J5: Impact Chart | M5: FALSE | N5: Show Detail
C6: Consumption
B7: NIE | C7: Non-Interest Expense | E7: =VLOOKUP($B7,RateVolData!$B:$K,2,FALSE) -> 0 | F7: =VLOOKUP($B7,RateVolData!$B:$K,3,FALSE) -> 0 | G7: =VLOOKUP($B7,RateVolData!$B:$K,5,FALSE) -> 0 | H7: =IFERROR(G7/E7,0) -> 0.0% | I7: =VLOOKUP($B7,RateVolData!$B:$K,10,FALSE) -> 0 | J7: =I7 -> 0
B8: PLL | C8: Provision for Loan Loss Expense | E8: =VLOOKUP($B8,RateVolData!$B:$K,2,FALSE) -> 0 | F8: =VLOOKUP($B8,RateVolData!$B:$K,3,FALSE) -> 0 | G8: =VLOOKUP($B8,RateVolData!$B:$K,5,FALSE) -> 0 | H8: =IFERROR(G8/E8,0) -> 0.0% | I8: =VLOOKUP($B8,RateVolData!$B:$K,10,FALSE) -> 0 | J8: 0
J9: 0
C10: Total Consumption | E10: =SUM(E7:E8) -> 0 | F10: =SUM(F7:F8) -> 0 | G10: =SUM(G7:G8) -> 0 | H10: =IFERROR(G10/E10,0) -> 0.0% | I10: =SUM(I7:I8) -> 0 | J10: =I10 -> 0
J11: 0
C12: Growth (Avg Bal & Non-Int Inc) | J12: 0
B13: =VLOOKUP($M13,$N$13:$P$20,2,FALSE) -> Lns | C13: =VLOOKUP($M13,$N$13:$P$20,3,FALSE) -> Loans | E13: =VLOOKUP($B13,RateVolData!$B:$K,2,FALSE) -> 0 | F13: =VLOOKUP($B13,RateVolData!$B:$K,3,FALSE) -> 0 | G13: =VLOOKUP($B13,RateVolData!$B:$K,5,FALSE) -> 0 | H13: =IFERROR(G13/E13,0) -> 0.0% | I13: =VLOOKUP($B13,RateVolData!$B:$K,10,FALSE) -> 0 | J13: =I13 -> 0 | M13: 1 | N13: =RANK(Q13,$Q$13:$Q$20) -> 1 | O13: Lns | P13: Loans | Q13: =VLOOKUP($O13,RateVolData!$B:$K,10,FALSE)+R13 -> 0 | R13: 9.679448814e-07
B14: =VLOOKUP($M14,$N$13:$P$20,2,FALSE) -> Rel Bal | C14: =VLOOKUP($M14,$N$13:$P$20,3,FALSE) -> Relationship Deposits | E14: =VLOOKUP($B14,RateVolData!$B:$K,2,FALSE) -> 0 | F14: =VLOOKUP($B14,RateVolData!$B:$K,3,FALSE) -> 0 | G14: =VLOOKUP($B14,RateVolData!$B:$K,5,FALSE) -> 0 | H14: 0.0% | I14: =VLOOKUP($B14,RateVolData!$B:$K,10,FALSE) -> 0 | J14: 0 | M14: 2 | N14: =RANK(Q14,$Q$13:$Q$20) -> 3 | O14: LLR | P14: Loan Loss Reserve | Q14: =VLOOKUP($O14,RateVolData!$B:$K,10,FALSE)+R14 -> 0 | R14: 8.746170003e-07
B15: LLR | C15: Loan Loss Reserve | E15: =VLOOKUP($B15,RateVolData!$B:$K,2,FALSE) -> 0 | F15: =VLOOKUP($B15,RateVolData!$B:$K,3,FALSE) -> 0 | G15: =VLOOKUP($B15,RateVolData!$B:$K,5,FALSE) -> 0 | H15: 0.0% | I15: =VLOOKUP($B15,RateVolData!$B:$K,10,FALSE) -> 0 | J15: 0 | M15: 3 | N15: 5 | O15: NEA | P15: Non-Earning Assets | Q15: =VLOOKUP($O15,RateVolData!$B:$K,10,FALSE)+R15 -> 0 | R15: 6.260667839e-07
B16: NII | C16: Non-Interest Income | E16: =VLOOKUP($B16,RateVolData!$B:$K,2,FALSE) -> 0 | F16: =VLOOKUP($B16,RateVolData!$B:$K,3,FALSE) -> 0 | G16: =VLOOKUP($B16,RateVolData!$B:$K,5,FALSE) -> 0 | H16: 0.0% | I16: =VLOOKUP($B16,RateVolData!$B:$K,10,FALSE) -> 0 | J16: 0 | M16: 4 | N16: 2 | O16: Rel Bal | P16: Relationship Deposits | Q16: =VLOOKUP($O16,RateVolData!$B:$K,10,FALSE)+R16 -> 0 | R16: 9.048132416e-07
B17: NEA | C17: Non-Earning Assets | E17: =VLOOKUP($B17,RateVolData!$B:$K,2,FALSE) -> 0 | F17: =VLOOKUP($B17,RateVolData!$B:$K,3,FALSE) -> 0 | G17: =VLOOKUP($B17,RateVolData!$B:$K,5,FALSE) -> 0 | H17: 0.0% | I17: =VLOOKUP($B17,RateVolData!$B:$K,10,FALSE) -> 0 | J17: 0 | M17: 5 | N17: 8 | O17: RS Bal | P17: Rate Sensitive Funds | Q17: =VLOOKUP($O17,RateVolData!$B:$K,10,FALSE)+R17 -> 0 | R17: 8.13974224e-08
B18: Other | C18: Other Liabilities | E18: =VLOOKUP($B18,RateVolData!$B:$K,2,FALSE) -> 0 | F18: =VLOOKUP($B18,RateVolData!$B:$K,3,FALSE) -> 0 | G18: =VLOOKUP($B18,RateVolData!$B:$K,5,FALSE) -> 0 | H18: 0.0% | I18: =VLOOKUP($B18,RateVolData!$B:$K,10,FALSE) -> 0 | J18: 0 | M18: 6 | N18: 6 | O18: Other | P18: Other Liabilities | Q18: =VLOOKUP($O18,RateVolData!$B:$K,10,FALSE)+R18 -> 0 | R18: 4.873135093e-07
B19: Cap | C19: Equity | E19: =VLOOKUP($B19,RateVolData!$B:$K,2,FALSE) -> 0 | F19: =VLOOKUP($B19,RateVolData!$B:$K,3,FALSE) -> 0 | G19: =VLOOKUP($B19,RateVolData!$B:$K,5,FALSE) -> 0 | H19: 0.0% | I19: =VLOOKUP($B19,RateVolData!$B:$K,10,FALSE) -> 0 | J19: 0 | M19: 7 | N19: 7 | O19: Cap | P19: Equity | Q19: =VLOOKUP($O19,RateVolData!$B:$K,10,FALSE)+R19 -> 0 | R19: 3.213301267e-07
B20: RS Bal | C20: Rate Sensitive Funds | E20: =VLOOKUP($B20,RateVolData!$B:$K,2,FALSE) -> 0 | F20: =VLOOKUP($B20,RateVolData!$B:$K,3,FALSE) -> 0 | G20: =VLOOKUP($B20,RateVolData!$B:$K,5,FALSE) -> 0 | H20: 0.0% | I20: =VLOOKUP($B20,RateVolData!$B:$K,10,FALSE) -> 0 | J20: 0 | M20: 8 | N20: 4 | O20: NII | P20: Non-Interest Income | Q20: =VLOOKUP($O20,RateVolData!$B:$K,10,FALSE)+R20 -> 0 | R20: 7.192920948e-07
J21: 0
C22: Subtotal Growth | I22: =SUM(I13:I21) -> 0 | J22: =I22 -> 0
J23: 0
C24: Pricing | J24: 0
B25: =VLOOKUP($M25,$N$25:$P$28,2,FALSE) -> LY | C25: =VLOOKUP($M25,$N$25:$P$28,3,FALSE) -> Loan Yield | E25: =VLOOKUP($B25,RateVolData!$B:$K,2,FALSE) -> 0.00% | F25: =VLOOKUP($B25,RateVolData!$B:$K,3,FALSE) -> 0.00% | G25: =VLOOKUP($B25,RateVolData!$B:$K,5,FALSE) -> 0.00% | I25: =VLOOKUP($B25,RateVolData!$B:$K,10,FALSE) -> 0 | J25: =I25 -> 0 | M25: 1 | N25: =RANK(Q25,Q$25:Q$28) -> 1 | O25: LY | P25: Loan Yield | Q25: =VLOOKUP($O25,RateVolData!$B:$K,10,FALSE)+R25 -> 0 | R25: 6.572713737e-07
B26: =VLOOKUP($M26,$N$25:$P$28,2,FALSE) -> SFY | C26: =VLOOKUP($M26,$N$25:$P$28,3,FALSE) -> Surplus Funds Yield | E26: =VLOOKUP($B26,RateVolData!$B:$K,2,FALSE) -> 0.00% | F26: =VLOOKUP($B26,RateVolData!$B:$K,3,FALSE) -> 0.00% | G26: =VLOOKUP($B26,RateVolData!$B:$K,5,FALSE) -> 0.00% | I26: =VLOOKUP($B26,RateVolData!$B:$K,10,FALSE) -> 0 | J26: =I26 -> 0 | M26: 2 | N26: =RANK(Q26,Q$25:Q$28) -> 2 | O26: SFY | P26: Surplus Funds Yield | Q26: =VLOOKUP($O26,RateVolData!$B:$K,10,FALSE)+R26 -> 0 | R26: 2.799484416e-07
B27: Rel | C27: Relationship Deposit Cost | E27: =VLOOKUP($B27,RateVolData!$B:$K,2,FALSE) -> 0.00% | F27: =VLOOKUP($B27,RateVolData!$B:$K,3,FALSE) -> 0.00% | G27: =VLOOKUP($B27,RateVolData!$B:$K,5,FALSE) -> 0.00% | I27: =VLOOKUP($B27,RateVolData!$B:$K,10,FALSE) -> 0 | J27: =I27 -> 0 | M27: 3 | N27: =RANK(Q27,Q$25:Q$28) -> 3 | O27: Rel | P27: Relationship Deposit Cost | Q27: =VLOOKUP($O27,RateVolData!$B:$K,10,FALSE)+R27 -> 0 | R27: 2.509078952e-07
B28: RS | C28: Rate Sensitive Funds Cost | E28: =VLOOKUP($B28,RateVolData!$B:$K,2,FALSE) -> 0.00% | F28: =VLOOKUP($B28,RateVolData!$B:$K,3,FALSE) -> 0.00% | G28: =VLOOKUP($B28,RateVolData!$B:$K,5,FALSE) -> 0.00% | I28: =VLOOKUP($B28,RateVolData!$B:$K,10,FALSE) -> 0 | J28: =I28 -> 0 | M28: 4 | N28: =RANK(Q28,Q$25:Q$28) -> 4 | O28: RS | P28: Rate Sensitive Funds Cost | Q28: =VLOOKUP($O28,RateVolData!$B:$K,10,FALSE)+R28 -> 0 | R28: 1.173623639e-07
J29: 0
C30: Subtotal Pricing | I30: =SUM(I25:I29) -> 0 | J30: =I30 -> 0
J31: 0
B32: NR | C32: Total Net Revenue | E32: =VLOOKUP($B32,RateVolData!$B:$K,2,FALSE) -> 0 | F32: =VLOOKUP($B32,RateVolData!$B:$K,3,FALSE) -> 0 | G32: =F32-E32 -> 0 | H32: =IFERROR(G32/E32,0) -> 0.0% | I32: =G32 -> 0 | J32: 0
J33: 0
B34: Net Inc | C34: Operating Net Income | E34: =VLOOKUP($B34,RateVolData!$B:$K,2,FALSE) -> 0 | F34: =VLOOKUP($B34,RateVolData!$B:$K,3,FALSE) -> 0 | G34: =VLOOKUP($B34,RateVolData!$B:$K,5,FALSE) -> 0 | H34: =IFERROR(G34/E34,0) -> 0.0% | I34: =VLOOKUP($B34,RateVolData!$B:$K,10,FALSE) -> 0 | J34: =I34 -> 0
C35: Return on Avg Assets | E35: =IFERROR(E34/Data!AF12,0) -> 0.00% | F35: =IFERROR(F34/Data!AG12,0) -> 0.00% | G35: =F35-E35 -> 0.00%
C37: Impact Test (Should be Zero) | I37: =ROUND(SUM(I10,I22,I30)-I34,0) -> 0

Sheet LnBal
D32: ="Gap Between "&TEXT(EOMONTH(BeginDate,12),"mmm yyy")&" and "&TEXT(EOMONTH(BeginDate,13),"mmm yyy") -> Gap Between Dec 2022 and Jan 2023 | J32: =VLOOKUP(DataID,DataRange,Data!S$2,FALSE)-VLOOKUP(DataID,DataRange,Data!Q$2,FALSE) -> 0 m | K32: =IFERROR(_xlfn.CONCAT("<-- Gap Equal to ",TEXT((J32*RateVolData!I3)/AVERAGE(Data!$E$12:$Q$12),"0.00%")," ROA"),0) -> 0
D33: Growth in Ending Balance | I33: =VLOOKUP(DataID,DataRange,Data!$AK$2,FALSE) -> 0.0% | J33: =VLOOKUP(DataID,DataRange,Data!$AJ$2,FALSE) -> 0 m
D34: Growth in Average Daily Balance | I34: =VLOOKUP(DataID,DataRange,Data!$AI$2,FALSE) -> 0.0% | J34: =VLOOKUP(DataID,DataRange,Data!$AH$2,FALSE) -> 0 m | K34: =IFERROR(_xlfn.CONCAT("<-- Produces ",TEXT(ROUND(ABS(VLOOKUP(DataID,RateVolData!$A:$K,11,FALSE))*1000,-3),"$#,##0")," Earnings ",IF(VLOOKUP(DataID,RateVolData!$A:$K,11,FALSE)>=0,"Lift","Drag")),"") -> <-- Produces $0 Earnings Lift
B37: Comments/Observations:
B72: B1 | C72: =BeginDate -> 2021-12-31 | D72: =EOMONTH(C72,1) -> 2022-01-31 | E72: =EOMONTH(D72,1) -> 2022-02-28 | F72: 2022-03-31 | G72: 2022-04-30 | H72: 2022-05-31 | I72: 2022-06-30 | J72: 2022-07-31 | K72: 2022-08-31 | L72: 2022-09-30 | M72: 2022-10-31 | N72: 2022-11-30 | O72: 2022-12-31 | P72: 2023-01-31 | Q72: 2023-02-28 | R72: 2023-03-31 | S72: 2023-04-30 | T72: 2023-05-31 | U72: 2023-06-30 | V72: 2023-07-31 | W72: 2023-08-31 | X72: 2023-09-30 | Y72: 2023-10-31 | Z72: 2023-11-30 | AA72: 2023-12-31
B73: Actual End | C73: =IF(ShowEnd=FALSE,"",VLOOKUP(DataID,DataRange,Data!E$2,FALSE)) -> 0 | D73: =IF(ShowEnd=FALSE,"",VLOOKUP(DataID,DataRange,Data!F$2,FALSE)) -> 0 | E73: =IF(ShowEnd=FALSE,"",VLOOKUP(DataID,DataRange,Data!G$2,FALSE)) -> 0 | F73: =IF(ShowEnd=FALSE,"",VLOOKUP(DataID,DataRange,Data!H$2,FALSE)) -> 0 | G73: =IF(ShowEnd=FALSE,"",VLOOKUP(DataID,DataRange,Data!I$2,FALSE)) -> 0 | H73: =IF(ShowEnd=FALSE,"",VLOOKUP(DataID,DataRange,Data!J$2,FALSE)) -> 0 | I73: =IF(ShowEnd=FALSE,"",VLOOKUP(DataID,DataRange,Data!K$2,FALSE)) -> 0 | J73: =IF(ShowEnd=FALSE,"",VLOOKUP(DataID,DataRange,Data!L$2,FALSE)) -> 0 | K73: =IF(ShowEnd=FALSE,"",VLOOKUP(DataID,DataRange,Data!M$2,FALSE)) -> 0 | L73: =IF(ShowEnd=FALSE,"",VLOOKUP(DataID,DataRange,Data!N$2,FALSE)) -> 0 | M73: =IF(ShowEnd=FALSE,"",VLOOKUP(DataID,DataRange,Data!O$2,FALSE)) -> 0 | N73: =IF(ShowEnd=FALSE,"",VLOOKUP(DataID,DataRange,Data!P$2,FALSE)) -> 0 | O73: =IF(ShowEnd=FALSE,"",VLOOKUP(DataID,DataRange,Data!Q$2,FALSE)) -> 0
B74: Budget End | P74: =IF(ShowEnd=FALSE,"",VLOOKUP(DataID,DataRange,Data!S$2,FALSE)) -> 0 | Q74: =IF(ShowEnd=FALSE,"",VLOOKUP(DataID,DataRange,Data!T$2,FALSE)) -> 0 | R74: =IF(ShowEnd=FALSE,"",VLOOKUP(DataID,DataRange,Data!U$2,FALSE)) -> 0 | S74: =IF(ShowEnd=FALSE,"",VLOOKUP(DataID,DataRange,Data!V$2,FALSE)) -> 0 | T74: =IF(ShowEnd=FALSE,"",VLOOKUP(DataID,DataRange,Data!W$2,FALSE)) -> 0 | U74: =IF(ShowEnd=FALSE,"",VLOOKUP(DataID,DataRange,Data!X$2,FALSE)) -> 0 | V74: =IF(ShowEnd=FALSE,"",VLOOKUP(DataID,DataRange,Data!Y$2,FALSE)) -> 0 | W74: =IF(ShowEnd=FALSE,"",VLOOKUP(DataID,DataRange,Data!Z$2,FALSE)) -> 0 | X74: =IF(ShowEnd=FALSE,"",VLOOKUP(DataID,DataRange,Data!AA$2,FALSE)) -> 0 | Y74: =IF(ShowEnd=FALSE,"",VLOOKUP(DataID,DataRange,Data!AB$2,FALSE)) -> 0 | Z74: =IF(ShowEnd=FALSE,"",VLOOKUP(DataID,DataRange,Data!AC$2,FALSE)) -> 0 | AA74: =IF(ShowEnd=FALSE,"",VLOOKUP(DataID,DataRange,Data!AD$2,FALSE)) -> 0
B75: Actual Avg Daily | C75: =IF(ShowAvg=FALSE,"",VLOOKUP(DataID,DataRange,Data!AF$2,FALSE)) -> 0 | D75: =C75 -> 0 | E75: =D75 -> 0 | F75: 0 | G75: 0 | H75: 0 | I75: 0 | J75: 0 | K75: 0 | L75: 0 | M75: 0 | N75: 0 | O75: 0
B76: Budget Avg Daily | P76: =IF(ShowAvg=FALSE,"",VLOOKUP(DataID,DataRange,Data!AG$2,FALSE)) -> 0 | Q76: =P76 -> 0 | R76: =Q76 -> 0 | S76: 0 | T76: 0 | U76: 0 | V76: 0 | W76: 0 | X76: 0 | Y76: 0 | Z76: 0 | AA76: 0
B78: =VLOOKUP(DataID,DataRange,Data!$C$2,FALSE) -> Gross Loans
B79: (Millions)
B80: ; Shaded Area = Annual Avg Bal
B81: =IF(ShowAvg=FALSE,_xlfn.CONCAT(B78,B79),_xlfn.CONCAT(B78,B79,B80)) -> Gross Loans (Millions); Shaded Area = Annual Avg Bal
B83: TRUE | C83: Show Avg
B84: TRUE | C84: Show End
B86: =MIN(C73:AA76) -> 0 | C86: 90% | D86: 4 | E86: =ROUNDDOWN(B86*C86,-D86) -> 0 | F86: <--ChartMin
B87: =MAX(C73:AA76) -> 0 | C87: 110% | D87: 4 | E87: =ROUNDUP(B87*C87,-D87) -> 0 | F87: <--ChartMax

Sheet RelBal
D32: ="Gap Between "&TEXT(EOMONTH(BeginDate,12),"mmm yyy")&" and "&TEXT(EOMONTH(BeginDate,13),"mmm yyy") -> Gap Between Dec 2022 and Jan 2023 | J32: =VLOOKUP(DataID,DataRange,Data!S$2,FALSE)-VLOOKUP(DataID,DataRange,Data!Q$2,FALSE) -> 0 m | K32: =IFERROR(_xlfn.CONCAT("<-- Gap Equal to ",TEXT((J32*RateVolData!I8)/AVERAGE(Data!$E$12:$Q$12),"0.00%")," ROA"),0) -> 0
D33: Growth in Ending Balance | I33: =VLOOKUP(DataID,DataRange,Data!$AK$2,FALSE) -> 0.0% | J33: =VLOOKUP(DataID,DataRange,Data!$AJ$2,FALSE) -> 0 m
D34: Growth in Average Daily Balance | I34: =VLOOKUP(DataID,DataRange,Data!$AI$2,FALSE) -> 0.0% | J34: =VLOOKUP(DataID,DataRange,Data!$AH$2,FALSE) -> 0 m | K34: =IFERROR(_xlfn.CONCAT("<-- Produces ",TEXT(ROUND(ABS(VLOOKUP(DataID,RateVolData!$A:$K,11,FALSE))*1000,-3),"$#,##0")," Earnings ",IF(VLOOKUP(DataID,RateVolData!$A:$K,11,FALSE)>=0,"Lift","Drag")),"") -> <-- Produces $0 Earnings Lift
B37: Comments/Observations:
B72: B6 | C72: =BeginDate -> 2021-12-31 | D72: =EOMONTH(C72,1) -> 2022-01-31 | E72: =EOMONTH(D72,1) -> 2022-02-28 | F72: 2022-03-31 | G72: 2022-04-30 | H72: 2022-05-31 | I72: 2022-06-30 | J72: 2022-07-31 | K72: 2022-08-31 | L72: 2022-09-30 | M72: 2022-10-31 | N72: 2022-11-30 | O72: 2022-12-31 | P72: 2023-01-31 | Q72: 2023-02-28 | R72: 2023-03-31 | S72: 2023-04-30 | T72: 2023-05-31 | U72: 2023-06-30 | V72: 2023-07-31 | W72: 2023-08-31 | X72: 2023-09-30 | Y72: 2023-10-31 | Z72: 2023-11-30 | AA72: 2023-12-31
B73: Actual End | C73: =IF(ShowEnd=FALSE,"",VLOOKUP(DataID,DataRange,Data!E$2,FALSE)) -> 0 | D73: =IF(ShowEnd=FALSE,"",VLOOKUP(DataID,DataRange,Data!F$2,FALSE)) -> 0 | E73: =IF(ShowEnd=FALSE,"",VLOOKUP(DataID,DataRange,Data!G$2,FALSE)) -> 0 | F73: =IF(ShowEnd=FALSE,"",VLOOKUP(DataID,DataRange,Data!H$2,FALSE)) -> 0 | G73: =IF(ShowEnd=FALSE,"",VLOOKUP(DataID,DataRange,Data!I$2,FALSE)) -> 0 | H73: =IF(ShowEnd=FALSE,"",VLOOKUP(DataID,DataRange,Data!J$2,FALSE)) -> 0 | I73: =IF(ShowEnd=FALSE,"",VLOOKUP(DataID,DataRange,Data!K$2,FALSE)) -> 0 | J73: =IF(ShowEnd=FALSE,"",VLOOKUP(DataID,DataRange,Data!L$2,FALSE)) -> 0 | K73: =IF(ShowEnd=FALSE,"",VLOOKUP(DataID,DataRange,Data!M$2,FALSE)) -> 0 | L73: =IF(ShowEnd=FALSE,"",VLOOKUP(DataID,DataRange,Data!N$2,FALSE)) -> 0 | M73: =IF(ShowEnd=FALSE,"",VLOOKUP(DataID,DataRange,Data!O$2,FALSE)) -> 0 | N73: =IF(ShowEnd=FALSE,"",VLOOKUP(DataID,DataRange,Data!P$2,FALSE)) -> 0 | O73: =IF(ShowEnd=FALSE,"",VLOOKUP(DataID,DataRange,Data!Q$2,FALSE)) -> 0
B74: Budget End | P74: =IF(ShowEnd=FALSE,"",VLOOKUP(DataID,DataRange,Data!S$2,FALSE)) -> 0 | Q74: =IF(ShowEnd=FALSE,"",VLOOKUP(DataID,DataRange,Data!T$2,FALSE)) -> 0 | R74: =IF(ShowEnd=FALSE,"",VLOOKUP(DataID,DataRange,Data!U$2,FALSE)) -> 0 | S74: =IF(ShowEnd=FALSE,"",VLOOKUP(DataID,DataRange,Data!V$2,FALSE)) -> 0 | T74: =IF(ShowEnd=FALSE,"",VLOOKUP(DataID,DataRange,Data!W$2,FALSE)) -> 0 | U74: =IF(ShowEnd=FALSE,"",VLOOKUP(DataID,DataRange,Data!X$2,FALSE)) -> 0 | V74: =IF(ShowEnd=FALSE,"",VLOOKUP(DataID,DataRange,Data!Y$2,FALSE)) -> 0 | W74: =IF(ShowEnd=FALSE,"",VLOOKUP(DataID,DataRange,Data!Z$2,FALSE)) -> 0 | X74: =IF(ShowEnd=FALSE,"",VLOOKUP(DataID,DataRange,Data!AA$2,FALSE)) -> 0 | Y74: =IF(ShowEnd=FALSE,"",VLOOKUP(DataID,DataRange,Data!AB$2,FALSE)) -> 0 | Z74: =IF(ShowEnd=FALSE,"",VLOOKUP(DataID,DataRange,Data!AC$2,FALSE)) -> 0 | AA74: =IF(ShowEnd=FALSE,"",VLOOKUP(DataID,DataRange,Data!AD$2,FALSE)) -> 0
B75: Actual Avg Daily | C75: =IF(ShowAvg=FALSE,"",VLOOKUP(DataID,DataRange,Data!AF$2,FALSE)) -> 0 | D75: =C75 -> 0 | E75: =D75 -> 0 | F75: 0 | G75: 0 | H75: 0 | I75: 0 | J75: 0 | K75: 0 | L75: 0 | M75: 0 | N75: 0 | O75: 0
B76: Budget Avg Daily | P76: =IF(ShowAvg=FALSE,"",VLOOKUP(DataID,DataRange,Data!AG$2,FALSE)) -> 0 | Q76: =P76 -> 0 | R76: =Q76 -> 0 | S76: 0 | T76: 0 | U76: 0 | V76: 0 | W76: 0 | X76: 0 | Y76: 0 | Z76: 0 | AA76: 0
B78: =VLOOKUP(DataID,DataRange,Data!$C$2,FALSE) -> Relationship Deposits
B79: (Millions)
B80: ; Shaded Area = Annual Avg Bal
B81: =IF(ShowAvg=FALSE,_xlfn.CONCAT(B78,B79),_xlfn.CONCAT(B78,B79,B80)) -> Relationship Deposits (Millions); Shaded Area = Annual Avg Bal
B83: TRUE | C83: Show Avg
B84: TRUE | C84: Show End
B86: =MIN(C73:AA76) -> 0 | C86: 90% | D86: 4 | E86: =ROUNDDOWN(B86*C86,-D86) -> 0 | F86: <--ChartMin
B87: =MAX(C73:AA76) -> 0 | C87: 110% | D87: 4 | E87: =ROUNDUP(B87*C87,-D87) -> 0 | F87: <--ChartMax

Sheet RSBal
D32: ="Gap Between "&TEXT(EOMONTH(BeginDate,12),"mmm yyy")&" and "&TEXT(EOMONTH(BeginDate,13),"mmm yyy") -> Gap Between Dec 2022 and Jan 2023 | J32: =VLOOKUP(DataID,DataRange,Data!S$2,FALSE)-VLOOKUP(DataID,DataRange,Data!Q$2,FALSE) -> 0 m | K32: =IFERROR(_xlfn.CONCAT("<-- Gap Equal to ",TEXT((J32*RateVolData!I9)/AVERAGE(Data!$E$12:$Q$12),"0.00%")," ROA"),0) -> 0
D33: Growth in Ending Balance | I33: =VLOOKUP(DataID,DataRange,Data!$AK$2,FALSE) -> 0.0% | J33: =VLOOKUP(DataID,DataRange,Data!$AJ$2,FALSE) -> 0 m
D34: Growth in Average Daily Balance | I34: =VLOOKUP(DataID,DataRange,Data!$AI$2,FALSE) -> 0.0% | J34: =VLOOKUP(DataID,DataRange,Data!$AH$2,FALSE) -> 0 m | K34: =IFERROR(_xlfn.CONCAT("<-- Produces ",TEXT(ROUND(ABS(VLOOKUP(DataID,RateVolData!$A:$K,11,FALSE))*1000,-3),"$#,##0")," Earnings ",IF(VLOOKUP(DataID,RateVolData!$A:$K,11,FALSE)>=0,"Lift","Drag")),"") -> <-- Produces $0 Earnings Lift
B37: Comments/Observations:
B72: B7 | C72: =BeginDate -> 2021-12-31 | D72: =EOMONTH(C72,1) -> 2022-01-31 | E72: =EOMONTH(D72,1) -> 2022-02-28 | F72: 2022-03-31 | G72: 2022-04-30 | H72: 2022-05-31 | I72: 2022-06-30 | J72: 2022-07-31 | K72: 2022-08-31 | L72: 2022-09-30 | M72: 2022-10-31 | N72: 2022-11-30 | O72: 2022-12-31 | P72: 2023-01-31 | Q72: 2023-02-28 | R72: 2023-03-31 | S72: 2023-04-30 | T72: 2023-05-31 | U72: 2023-06-30 | V72: 2023-07-31 | W72: 2023-08-31 | X72: 2023-09-30 | Y72: 2023-10-31 | Z72: 2023-11-30 | AA72: 2023-12-31
B73: Actual End | C73: =IF(ShowEnd=FALSE,"",VLOOKUP(DataID,DataRange,Data!E$2,FALSE)) -> 0 | D73: =IF(ShowEnd=FALSE,"",VLOOKUP(DataID,DataRange,Data!F$2,FALSE)) -> 0 | E73: =IF(ShowEnd=FALSE,"",VLOOKUP(DataID,DataRange,Data!G$2,FALSE)) -> 0 | F73: =IF(ShowEnd=FALSE,"",VLOOKUP(DataID,DataRange,Data!H$2,FALSE)) -> 0 | G73: =IF(ShowEnd=FALSE,"",VLOOKUP(DataID,DataRange,Data!I$2,FALSE)) -> 0 | H73: =IF(ShowEnd=FALSE,"",VLOOKUP(DataID,DataRange,Data!J$2,FALSE)) -> 0 | I73: =IF(ShowEnd=FALSE,"",VLOOKUP(DataID,DataRange,Data!K$2,FALSE)) -> 0 | J73: =IF(ShowEnd=FALSE,"",VLOOKUP(DataID,DataRange,Data!L$2,FALSE)) -> 0 | K73: =IF(ShowEnd=FALSE,"",VLOOKUP(DataID,DataRange,Data!M$2,FALSE)) -> 0 | L73: =IF(ShowEnd=FALSE,"",VLOOKUP(DataID,DataRange,Data!N$2,FALSE)) -> 0 | M73: =IF(ShowEnd=FALSE,"",VLOOKUP(DataID,DataRange,Data!O$2,FALSE)) -> 0 | N73: =IF(ShowEnd=FALSE,"",VLOOKUP(DataID,DataRange,Data!P$2,FALSE)) -> 0 | O73: =IF(ShowEnd=FALSE,"",VLOOKUP(DataID,DataRange,Data!Q$2,FALSE)) -> 0
B74: Budget End | P74: =IF(ShowEnd=FALSE,"",VLOOKUP(DataID,DataRange,Data!S$2,FALSE)) -> 0 | Q74: =IF(ShowEnd=FALSE,"",VLOOKUP(DataID,DataRange,Data!T$2,FALSE)) -> 0 | R74: =IF(ShowEnd=FALSE,"",VLOOKUP(DataID,DataRange,Data!U$2,FALSE)) -> 0 | S74: =IF(ShowEnd=FALSE,"",VLOOKUP(DataID,DataRange,Data!V$2,FALSE)) -> 0 | T74: =IF(ShowEnd=FALSE,"",VLOOKUP(DataID,DataRange,Data!W$2,FALSE)) -> 0 | U74: =IF(ShowEnd=FALSE,"",VLOOKUP(DataID,DataRange,Data!X$2,FALSE)) -> 0 | V74: =IF(ShowEnd=FALSE,"",VLOOKUP(DataID,DataRange,Data!Y$2,FALSE)) -> 0 | W74: =IF(ShowEnd=FALSE,"",VLOOKUP(DataID,DataRange,Data!Z$2,FALSE)) -> 0 | X74: =IF(ShowEnd=FALSE,"",VLOOKUP(DataID,DataRange,Data!AA$2,FALSE)) -> 0 | Y74: =IF(ShowEnd=FALSE,"",VLOOKUP(DataID,DataRange,Data!AB$2,FALSE)) -> 0 | Z74: =IF(ShowEnd=FALSE,"",VLOOKUP(DataID,DataRange,Data!AC$2,FALSE)) -> 0 | AA74: =IF(ShowEnd=FALSE,"",VLOOKUP(DataID,DataRange,Data!AD$2,FALSE)) -> 0
B75: Actual Avg Daily | C75: =IF(ShowAvg=FALSE,"",VLOOKUP(DataID,DataRange,Data!AF$2,FALSE)) -> 0 | D75: =C75 -> 0 | E75: =D75 -> 0 | F75: 0 | G75: 0 | H75: 0 | I75: 0 | J75: 0 | K75: 0 | L75: 0 | M75: 0 | N75: 0 | O75: 0
B76: Budget Avg Daily | P76: =IF(ShowAvg=FALSE,"",VLOOKUP(DataID,DataRange,Data!AG$2,FALSE)) -> 0 | Q76: =P76 -> 0 | R76: =Q76 -> 0 | S76: 0 | T76: 0 | U76: 0 | V76: 0 | W76: 0 | X76: 0 | Y76: 0 | Z76: 0 | AA76: 0
B78: =VLOOKUP(DataID,DataRange,Data!$C$2,FALSE) -> Rate Sensitive Funds
B79: (Millions)
B80: ; Shaded Area = Annual Avg Bal
B81: =IF(ShowAvg=FALSE,_xlfn.CONCAT(B78,B79),_xlfn.CONCAT(B78,B79,B80)) -> Rate Sensitive Funds (Millions); Shaded Area = Annual Avg Bal
B83: TRUE | C83: Show Avg
B84: TRUE | C84: Show End
B86: =MIN(C73:AA76) -> 0 | C86: 90% | D86: 4 | E86: =ROUNDDOWN(B86*C86,-D86) -> 0 | F86: <--ChartMin
B87: =MAX(C73:AA76) -> 0 | C87: 110% | D87: 4 | E87: =ROUNDUP(B87*C87,-D87) -> 0 | F87: <--ChartMax

Sheet LnPct
D32: ="Gap Between "&TEXT(EOMONTH(BeginDate,12),"mmm yyy")&" and "&TEXT(EOMONTH(BeginDate,13),"mmm yyy") -> Gap Between Dec 2022 and Jan 2023 | J32: =VLOOKUP(DataID,DataRange,Data!S$2,FALSE)-VLOOKUP(DataID,DataRange,Data!Q$2,FALSE) -> 0.0%
B37: Comments/Observations:
B72: M1 | C72: =EOMONTH(BeginDate,1) -> 2022-01-31 | D72: =EOMONTH(C72,1) -> 2022-02-28 | E72: 2022-03-31 | F72: 2022-04-30 | G72: 2022-05-31 | H72: 2022-06-30 | I72: 2022-07-31 | J72: 2022-08-31 | K72: 2022-09-30 | L72: 2022-10-31 | M72: 2022-11-30 | N72: 2022-12-31 | O72: 2023-01-31 | P72: 2023-02-28 | Q72: 2023-03-31 | R72: 2023-04-30 | S72: 2023-05-31 | T72: 2023-06-30 | U72: 2023-07-31 | V72: 2023-08-31 | W72: 2023-09-30 | X72: 2023-10-31 | Y72: 2023-11-30 | Z72: 2023-12-31
B73: Actual End | C73: =IF(ShowEnd=FALSE,"",VLOOKUP(DataID,DataRange,Data!F$2,FALSE)) -> 0.0% | D73: =IF(ShowEnd=FALSE,"",VLOOKUP(DataID,DataRange,Data!G$2,FALSE)) -> 0.0% | E73: =IF(ShowEnd=FALSE,"",VLOOKUP(DataID,DataRange,Data!H$2,FALSE)) -> 0.0% | F73: =IF(ShowEnd=FALSE,"",VLOOKUP(DataID,DataRange,Data!I$2,FALSE)) -> 0.0% | G73: =IF(ShowEnd=FALSE,"",VLOOKUP(DataID,DataRange,Data!J$2,FALSE)) -> 0.0% | H73: =IF(ShowEnd=FALSE,"",VLOOKUP(DataID,DataRange,Data!K$2,FALSE)) -> 0.0% | I73: =IF(ShowEnd=FALSE,"",VLOOKUP(DataID,DataRange,Data!L$2,FALSE)) -> 0.0% | J73: =IF(ShowEnd=FALSE,"",VLOOKUP(DataID,DataRange,Data!M$2,FALSE)) -> 0.0% | K73: =IF(ShowEnd=FALSE,"",VLOOKUP(DataID,DataRange,Data!N$2,FALSE)) -> 0.0% | L73: =IF(ShowEnd=FALSE,"",VLOOKUP(DataID,DataRange,Data!O$2,FALSE)) -> 0.0% | M73: =IF(ShowEnd=FALSE,"",VLOOKUP(DataID,DataRange,Data!P$2,FALSE)) -> 0.0% | N73: =IF(ShowEnd=FALSE,"",VLOOKUP(DataID,DataRange,Data!Q$2,FALSE)) -> 0.0%
B74: Budget End | O74: =IF(ShowEnd=FALSE,"",VLOOKUP(DataID,DataRange,Data!S$2,FALSE)) -> 0.0% | P74: =IF(ShowEnd=FALSE,"",VLOOKUP(DataID,DataRange,Data!T$2,FALSE)) -> 0.0% | Q74: =IF(ShowEnd=FALSE,"",VLOOKUP(DataID,DataRange,Data!U$2,FALSE)) -> 0.0% | R74: =IF(ShowEnd=FALSE,"",VLOOKUP(DataID,DataRange,Data!V$2,FALSE)) -> 0.0% | S74: =IF(ShowEnd=FALSE,"",VLOOKUP(DataID,DataRange,Data!W$2,FALSE)) -> 0.0% | T74: =IF(ShowEnd=FALSE,"",VLOOKUP(DataID,DataRange,Data!X$2,FALSE)) -> 0.0% | U74: =IF(ShowEnd=FALSE,"",VLOOKUP(DataID,DataRange,Data!Y$2,FALSE)) -> 0.0% | V74: =IF(ShowEnd=FALSE,"",VLOOKUP(DataID,DataRange,Data!Z$2,FALSE)) -> 0.0% | W74: =IF(ShowEnd=FALSE,"",VLOOKUP(DataID,DataRange,Data!AA$2,FALSE)) -> 0.0% | X74: =IF(ShowEnd=FALSE,"",VLOOKUP(DataID,DataRange,Data!AB$2,FALSE)) -> 0.0% | Y74: =IF(ShowEnd=FALSE,"",VLOOKUP(DataID,DataRange,Data!AC$2,FALSE)) -> 0.0% | Z74: =IF(ShowEnd=FALSE,"",VLOOKUP(DataID,DataRange,Data!AD$2,FALSE)) -> 0.0%
B78: =VLOOKUP(DataID,DataRange,Data!$C$2,FALSE) -> Loans as Percent of Assets
B81: =IF(ShowAvg=FALSE,_xlfn.CONCAT(B78,B79),_xlfn.CONCAT(B78,B79,B80)) -> Loans as Percent of Assets
B83: TRUE | C83: Show Avg
B84: TRUE | C84: Show End
B86: =MIN(C73:Z76) -> 0.00% | C86: 90% | D86: -3 | E86: =ROUNDDOWN(B86*C86,-D86) -> 0.00% | F86: <--ChartMin
B87: =MAX(C73:Z76) -> 0.00% | C87: 110% | D87: -3 | E87: =ROUNDUP(B87*C87,-D87) -> 0.00% | F87: <--ChartMax

Sheet RelPct
D32: ="Gap Between "&TEXT(EOMONTH(BeginDate,12),"mmm yyy")&" and "&TEXT(EOMONTH(BeginDate,13),"mmm yyy") -> Gap Between Dec 2022 and Jan 2023 | J32: =VLOOKUP(DataID,DataRange,Data!S$2,FALSE)-VLOOKUP(DataID,DataRange,Data!Q$2,FALSE) -> 0.0%
B37: Comments/Observations:
B72: M2 | C72: =EOMONTH(BeginDate,1) -> 2022-01-31 | D72: =EOMONTH(C72,1) -> 2022-02-28 | E72: 2022-03-31 | F72: 2022-04-30 | G72: 2022-05-31 | H72: 2022-06-30 | I72: 2022-07-31 | J72: 2022-08-31 | K72: 2022-09-30 | L72: 2022-10-31 | M72: 2022-11-30 | N72: 2022-12-31 | O72: 2023-01-31 | P72: 2023-02-28 | Q72: 2023-03-31 | R72: 2023-04-30 | S72: 2023-05-31 | T72: 2023-06-30 | U72: 2023-07-31 | V72: 2023-08-31 | W72: 2023-09-30 | X72: 2023-10-31 | Y72: 2023-11-30 | Z72: 2023-12-31
B73: Actual End | C73: =IF(ShowEnd=FALSE,"",VLOOKUP(DataID,DataRange,Data!F$2,FALSE)) -> 0.0% | D73: =IF(ShowEnd=FALSE,"",VLOOKUP(DataID,DataRange,Data!G$2,FALSE)) -> 0.0% | E73: =IF(ShowEnd=FALSE,"",VLOOKUP(DataID,DataRange,Data!H$2,FALSE)) -> 0.0% | F73: =IF(ShowEnd=FALSE,"",VLOOKUP(DataID,DataRange,Data!I$2,FALSE)) -> 0.0% | G73: =IF(ShowEnd=FALSE,"",VLOOKUP(DataID,DataRange,Data!J$2,FALSE)) -> 0.0% | H73: =IF(ShowEnd=FALSE,"",VLOOKUP(DataID,DataRange,Data!K$2,FALSE)) -> 0.0% | I73: =IF(ShowEnd=FALSE,"",VLOOKUP(DataID,DataRange,Data!L$2,FALSE)) -> 0.0% | J73: =IF(ShowEnd=FALSE,"",VLOOKUP(DataID,DataRange,Data!M$2,FALSE)) -> 0.0% | K73: =IF(ShowEnd=FALSE,"",VLOOKUP(DataID,DataRange,Data!N$2,FALSE)) -> 0.0% | L73: =IF(ShowEnd=FALSE,"",VLOOKUP(DataID,DataRange,Data!O$2,FALSE)) -> 0.0% | M73: =IF(ShowEnd=FALSE,"",VLOOKUP(DataID,DataRange,Data!P$2,FALSE)) -> 0.0% | N73: =IF(ShowEnd=FALSE,"",VLOOKUP(DataID,DataRange,Data!Q$2,FALSE)) -> 0.0%
B74: Budget End | O74: =IF(ShowEnd=FALSE,"",VLOOKUP(DataID,DataRange,Data!S$2,FALSE)) -> 0.0% | P74: =IF(ShowEnd=FALSE,"",VLOOKUP(DataID,DataRange,Data!T$2,FALSE)) -> 0.0% | Q74: =IF(ShowEnd=FALSE,"",VLOOKUP(DataID,DataRange,Data!U$2,FALSE)) -> 0.0% | R74: =IF(ShowEnd=FALSE,"",VLOOKUP(DataID,DataRange,Data!V$2,FALSE)) -> 0.0% | S74: =IF(ShowEnd=FALSE,"",VLOOKUP(DataID,DataRange,Data!W$2,FALSE)) -> 0.0% | T74: =IF(ShowEnd=FALSE,"",VLOOKUP(DataID,DataRange,Data!X$2,FALSE)) -> 0.0% | U74: =IF(ShowEnd=FALSE,"",VLOOKUP(DataID,DataRange,Data!Y$2,FALSE)) -> 0.0% | V74: =IF(ShowEnd=FALSE,"",VLOOKUP(DataID,DataRange,Data!Z$2,FALSE)) -> 0.0% | W74: =IF(ShowEnd=FALSE,"",VLOOKUP(DataID,DataRange,Data!AA$2,FALSE)) -> 0.0% | X74: =IF(ShowEnd=FALSE,"",VLOOKUP(DataID,DataRange,Data!AB$2,FALSE)) -> 0.0% | Y74: =IF(ShowEnd=FALSE,"",VLOOKUP(DataID,DataRange,Data!AC$2,FALSE)) -> 0.0% | Z74: =IF(ShowEnd=FALSE,"",VLOOKUP(DataID,DataRange,Data!AD$2,FALSE)) -> 0.0%
B78: =VLOOKUP(DataID,DataRange,Data!$C$2,FALSE) -> Relationship Deposits as Percent of Assets
B81: =IF(ShowAvg=FALSE,_xlfn.CONCAT(B78,B79),_xlfn.CONCAT(B78,B79,B80)) -> Relationship Deposits as Percent of Assets
B83: TRUE | C83: Show Avg
B84: TRUE | C84: Show End
B86: =MIN(C73:Z76) -> 0.00% | C86: 90% | D86: -3 | E86: =ROUNDDOWN(B86*C86,-D86) -> 0.00% | F86: <--ChartMin
B87: =MAX(C73:Z76) -> 0.00% | C87: 110% | D87: -3 | E87: =ROUNDUP(B87*C87,-D87) -> 0.00% | F87: <--ChartMax

Sheet NIINIE
D32: ="Gap Between "&TEXT(EOMONTH(BeginDate,12),"mmm yyy")&" and "&TEXT(EOMONTH(BeginDate,13),"mmm yyy") -> Gap Between Dec 2022 and Jan 2023 | J32: =VLOOKUP(DataID,DataRange,Data!S$2,FALSE)-VLOOKUP(DataID,DataRange,Data!Q$2,FALSE) -> 0.0%
D33: ="Average Ratio in "&TEXT(EOMONTH(BeginDate,12),"yyy") -> Average Ratio in 2022 | J33: =VLOOKUP(DataID,DataRange,Data!$AF$2,FALSE) -> 0.0%
D34: ="Budget Ratio in "&TEXT(EOMONTH(BeginDate,24),"yyy") -> Budget Ratio in 2023 | J34: =VLOOKUP(DataID,DataRange,Data!$AG$2,FALSE) -> 0.0%
B37: Comments/Observations:
B72: M3 | C72: =EOMONTH(BeginDate,1) -> 2022-01-31 | D72: =EOMONTH(C72,1) -> 2022-02-28 | E72: 2022-03-31 | F72: 2022-04-30 | G72: 2022-05-31 | H72: 2022-06-30 | I72: 2022-07-31 | J72: 2022-08-31 | K72: 2022-09-30 | L72: 2022-10-31 | M72: 2022-11-30 | N72: 2022-12-31 | O72: 2023-01-31 | P72: 2023-02-28 | Q72: 2023-03-31 | R72: 2023-04-30 | S72: 2023-05-31 | T72: 2023-06-30 | U72: 2023-07-31 | V72: 2023-08-31 | W72: 2023-09-30 | X72: 2023-10-31 | Y72: 2023-11-30 | Z72: 2023-12-31
B73: Actual End | C73: =IF(ShowEnd=FALSE,"",VLOOKUP(DataID,DataRange,Data!F$2,FALSE)) -> 0.0% | D73: =IF(ShowEnd=FALSE,"",VLOOKUP(DataID,DataRange,Data!G$2,FALSE)) -> 0.0% | E73: =IF(ShowEnd=FALSE,"",VLOOKUP(DataID,DataRange,Data!H$2,FALSE)) -> 0.0% | F73: =IF(ShowEnd=FALSE,"",VLOOKUP(DataID,DataRange,Data!I$2,FALSE)) -> 0.0% | G73: =IF(ShowEnd=FALSE,"",VLOOKUP(DataID,DataRange,Data!J$2,FALSE)) -> 0.0% | H73: =IF(ShowEnd=FALSE,"",VLOOKUP(DataID,DataRange,Data!K$2,FALSE)) -> 0.0% | I73: =IF(ShowEnd=FALSE,"",VLOOKUP(DataID,DataRange,Data!L$2,FALSE)) -> 0.0% | J73: =IF(ShowEnd=FALSE,"",VLOOKUP(DataID,DataRange,Data!M$2,FALSE)) -> 0.0% | K73: =IF(ShowEnd=FALSE,"",VLOOKUP(DataID,DataRange,Data!N$2,FALSE)) -> 0.0% | L73: =IF(ShowEnd=FALSE,"",VLOOKUP(DataID,DataRange,Data!O$2,FALSE)) -> 0.0% | M73: =IF(ShowEnd=FALSE,"",VLOOKUP(DataID,DataRange,Data!P$2,FALSE)) -> 0.0% | N73: =IF(ShowEnd=FALSE,"",VLOOKUP(DataID,DataRange,Data!Q$2,FALSE)) -> 0.0%
B74: Budget End | O74: =IF(ShowEnd=FALSE,"",VLOOKUP(DataID,DataRange,Data!S$2,FALSE)) -> 0.0% | P74: =IF(ShowEnd=FALSE,"",VLOOKUP(DataID,DataRange,Data!T$2,FALSE)) -> 0.0% | Q74: =IF(ShowEnd=FALSE,"",VLOOKUP(DataID,DataRange,Data!U$2,FALSE)) -> 0.0% | R74: =IF(ShowEnd=FALSE,"",VLOOKUP(DataID,DataRange,Data!V$2,FALSE)) -> 0.0% | S74: =IF(ShowEnd=FALSE,"",VLOOKUP(DataID,DataRange,Data!W$2,FALSE)) -> 0.0% | T74: =IF(ShowEnd=FALSE,"",VLOOKUP(DataID,DataRange,Data!X$2,FALSE)) -> 0.0% | U74: =IF(ShowEnd=FALSE,"",VLOOKUP(DataID,DataRange,Data!Y$2,FALSE)) -> 0.0% | V74: =IF(ShowEnd=FALSE,"",VLOOKUP(DataID,DataRange,Data!Z$2,FALSE)) -> 0.0% | W74: =IF(ShowEnd=FALSE,"",VLOOKUP(DataID,DataRange,Data!AA$2,FALSE)) -> 0.0% | X74: =IF(ShowEnd=FALSE,"",VLOOKUP(DataID,DataRange,Data!AB$2,FALSE)) -> 0.0% | Y74: =IF(ShowEnd=FALSE,"",VLOOKUP(DataID,DataRange,Data!AC$2,FALSE)) -> 0.0% | Z74: =IF(ShowEnd=FALSE,"",VLOOKUP(DataID,DataRange,Data!AD$2,FALSE)) -> 0.0%
B75: Actual Avg Daily | C75: =IF(ShowAvg=FALSE,"",VLOOKUP(DataID,DataRange,Data!AF$2,FALSE)) -> 0.0% | D75: =C75 -> 0.0% | E75: 0.0% | F75: 0.0% | G75: 0.0% | H75: 0.0% | I75: 0.0% | J75: 0.0% | K75: 0.0% | L75: 0.0% | M75: 0.0% | N75: 0.0%
B76: Budget Avg Daily | O76: =IF(ShowAvg=FALSE,"",VLOOKUP(DataID,DataRange,Data!AG$2,FALSE)) -> 0.0% | P76: =O76 -> 0.0% | Q76: =P76 -> 0.0% | R76: 0.0% | S76: 0.0% | T76: 0.0% | U76: 0.0% | V76: 0.0% | W76: 0.0% | X76: 0.0% | Y76: 0.0% | Z76: 0.0%
B78: =VLOOKUP(DataID,DataRange,Data!$C$2,FALSE) -> YTD Non-Int Inc as Percent of Non-Int Exp
B80: ; Shaded Area = Annual Average
B81: =IF(ShowAvg=FALSE,_xlfn.CONCAT(B78,B79),_xlfn.CONCAT(B78,B79,B80)) -> YTD Non-Int Inc as Percent of Non-Int Exp; Shaded Area = Annual Average
B83: TRUE | C83: Show Avg
B84: TRUE | C84: Show End
B86: =MIN(C73:Z76) -> 0.00% | C86: 90% | D86: -3 | E86: =ROUNDDOWN(B86*C86,-D86) -> 0.00% | F86: <--ChartMin
B87: =MAX(C73:Z76) -> 0.00% | C87: 110% | D87: -3 | E87: =ROUNDUP(B87*C87,-D87) -> 0.00% | F87: <--ChartMax

Sheet LnYld
D32: ="Gap Between "&TEXT(EOMONTH(BeginDate,12),"mmm yyy")&" and "&TEXT(EOMONTH(BeginDate,13),"mmm yyy") -> Gap Between Dec 2022 and Jan 2023 | J32: =VLOOKUP(DataID,DataRange,Data!S$2,FALSE)-VLOOKUP(DataID,DataRange,Data!Q$2,FALSE) -> 0.00% | K32: =IFERROR(_xlfn.CONCAT("<-- Gap Equal to ",TEXT((J32*RateVolData!D3)/AVERAGE(Data!$E$12:$Q$12),"0.00%")," ROA"),0) -> 0
D33: ="Average Yield in "&TEXT(EOMONTH(BeginDate,12),"yyy") -> Average Yield in 2022 | J33: =VLOOKUP(DataID,DataRange,Data!$AF$2,FALSE) -> 0.00%
D34: ="Budget Yield in "&TEXT(EOMONTH(BeginDate,24),"yyy") -> Budget Yield in 2023 | J34: =VLOOKUP(DataID,DataRange,Data!$AG$2,FALSE) -> 0.00%
D35: Change in Yield | J35: =VLOOKUP(DataID,DataRange,Data!$AH$2,FALSE) -> 0.00% | K35: =IFERROR(_xlfn.CONCAT("<-- Produces ",TEXT(ROUND(ABS(VLOOKUP(DataID,RateVolData!$A:$K,11,FALSE))*1000,-3),"$#,##0")," Earnings ",IF(VLOOKUP(DataID,RateVolData!$A:$K,11,FALSE)>=0,"Lift","Drag")),"") -> <-- Produces $0 Earnings Lift
B37: Comments/Observations:
B72: R1 | C72: =EOMONTH(BeginDate,1) -> 2022-01-31 | D72: =EOMONTH(C72,1) -> 2022-02-28 | E72: 2022-03-31 | F72: 2022-04-30 | G72: 2022-05-31 | H72: 2022-06-30 | I72: 2022-07-31 | J72: 2022-08-31 | K72: 2022-09-30 | L72: 2022-10-31 | M72: 2022-11-30 | N72: 2022-12-31 | O72: 2023-01-31 | P72: 2023-02-28 | Q72: 2023-03-31 | R72: 2023-04-30 | S72: 2023-05-31 | T72: 2023-06-30 | U72: 2023-07-31 | V72: 2023-08-31 | W72: 2023-09-30 | X72: 2023-10-31 | Y72: 2023-11-30 | Z72: 2023-12-31
B73: Actual End | C73: =IF(ShowEnd=FALSE,"",VLOOKUP(DataID,DataRange,Data!F$2,FALSE)) -> 0.00% | D73: =IF(ShowEnd=FALSE,"",VLOOKUP(DataID,DataRange,Data!G$2,FALSE)) -> 0.00% | E73: =IF(ShowEnd=FALSE,"",VLOOKUP(DataID,DataRange,Data!H$2,FALSE)) -> 0.00% | F73: =IF(ShowEnd=FALSE,"",VLOOKUP(DataID,DataRange,Data!I$2,FALSE)) -> 0.00% | G73: =IF(ShowEnd=FALSE,"",VLOOKUP(DataID,DataRange,Data!J$2,FALSE)) -> 0.00% | H73: =IF(ShowEnd=FALSE,"",VLOOKUP(DataID,DataRange,Data!K$2,FALSE)) -> 0.00% | I73: =IF(ShowEnd=FALSE,"",VLOOKUP(DataID,DataRange,Data!L$2,FALSE)) -> 0.00% | J73: =IF(ShowEnd=FALSE,"",VLOOKUP(DataID,DataRange,Data!M$2,FALSE)) -> 0.00% | K73: =IF(ShowEnd=FALSE,"",VLOOKUP(DataID,DataRange,Data!N$2,FALSE)) -> 0.00% | L73: =IF(ShowEnd=FALSE,"",VLOOKUP(DataID,DataRange,Data!O$2,FALSE)) -> 0.00% | M73: =IF(ShowEnd=FALSE,"",VLOOKUP(DataID,DataRange,Data!P$2,FALSE)) -> 0.00% | N73: =IF(ShowEnd=FALSE,"",VLOOKUP(DataID,DataRange,Data!Q$2,FALSE)) -> 0.00%
B74: Budget End | O74: =IF(ShowEnd=FALSE,"",VLOOKUP(DataID,DataRange,Data!S$2,FALSE)) -> 0.00% | P74: =IF(ShowEnd=FALSE,"",VLOOKUP(DataID,DataRange,Data!T$2,FALSE)) -> 0.00% | Q74: =IF(ShowEnd=FALSE,"",VLOOKUP(DataID,DataRange,Data!U$2,FALSE)) -> 0.00% | R74: =IF(ShowEnd=FALSE,"",VLOOKUP(DataID,DataRange,Data!V$2,FALSE)) -> 0.00% | S74: =IF(ShowEnd=FALSE,"",VLOOKUP(DataID,DataRange,Data!W$2,FALSE)) -> 0.00% | T74: =IF(ShowEnd=FALSE,"",VLOOKUP(DataID,DataRange,Data!X$2,FALSE)) -> 0.00% | U74: =IF(ShowEnd=FALSE,"",VLOOKUP(DataID,DataRange,Data!Y$2,FALSE)) -> 0.00% | V74: =IF(ShowEnd=FALSE,"",VLOOKUP(DataID,DataRange,Data!Z$2,FALSE)) -> 0.00% | W74: =IF(ShowEnd=FALSE,"",VLOOKUP(DataID,DataRange,Data!AA$2,FALSE)) -> 0.00% | X74: =IF(ShowEnd=FALSE,"",VLOOKUP(DataID,DataRange,Data!AB$2,FALSE)) -> 0.00% | Y74: =IF(ShowEnd=FALSE,"",VLOOKUP(DataID,DataRange,Data!AC$2,FALSE)) -> 0.00% | Z74: =IF(ShowEnd=FALSE,"",VLOOKUP(DataID,DataRange,Data!AD$2,FALSE)) -> 0.00%
B75: Actual Avg Daily | C75: =IF(ShowAvg=FALSE,"",VLOOKUP(DataID,DataRange,Data!AF$2,FALSE)) -> 0.00% | D75: =C75 -> 0.00% | E75: 0.00% | F75: 0.00% | G75: 0.00% | H75: 0.00% | I75: 0.00% | J75: 0.00% | K75: 0.00% | L75: 0.00% | M75: 0.00% | N75: 0.00%
B76: Budget Avg Daily | O76: =IF(ShowAvg=FALSE,"",VLOOKUP(DataID,DataRange,Data!AG$2,FALSE)) -> 0.00% | P76: =O76 -> 0.00% | Q76: =P76 -> 0.00% | R76: 0.00% | S76: 0.00% | T76: 0.00% | U76: 0.00% | V76: 0.00% | W76: 0.00% | X76: 0.00% | Y76: 0.00% | Z76: 0.00%
B78: =VLOOKUP(DataID,DataRange,Data!$C$2,FALSE) -> Loan Yield
B80: ; Shaded Area = Annual Average
B81: =IF(ShowAvg=FALSE,_xlfn.CONCAT(B78,B79),_xlfn.CONCAT(B78,B79,B80)) -> Loan Yield; Shaded Area = Annual Average
B83: TRUE | C83: Show Avg
B84: TRUE | C84: Show End
B86: =MIN(C73:Z76) -> 0.00% | C86: 90% | D86: -3 | E86: =ROUNDDOWN(B86*C86,-D86) -> 0.00% | F86: <--ChartMin
B87: =MAX(C73:Z76) -> 0.00% | C87: 110% | D87: -3 | E87: =ROUNDUP(B87*C87,-D87) -> 0.00% | F87: <--ChartMax

Sheet SFYld
D32: ="Gap Between "&TEXT(EOMONTH(BeginDate,12),"mmm yyy")&" and "&TEXT(EOMONTH(BeginDate,13),"mmm yyy") -> Gap Between Dec 2022 and Jan 2023 | J32: =VLOOKUP(DataID,DataRange,Data!S$2,FALSE)-VLOOKUP(DataID,DataRange,Data!Q$2,FALSE) -> 0.00% | K32: =IFERROR(_xlfn.CONCAT("<-- Gap Equal to ",TEXT((J32*RateVolData!D4)/AVERAGE(Data!$E$12:$Q$12),"0.00%")," ROA"),0) -> 0
D33: ="Average Yield in "&TEXT(EOMONTH(BeginDate,12),"yyy") -> Average Yield in 2022 | J33: =VLOOKUP(DataID,DataRange,Data!$AF$2,FALSE) -> 0.00%
D34: ="Budget Yield in "&TEXT(EOMONTH(BeginDate,24),"yyy") -> Budget Yield in 2023 | J34: =VLOOKUP(DataID,DataRange,Data!$AG$2,FALSE) -> 0.00%
D35: Change in Yield | J35: =VLOOKUP(DataID,DataRange,Data!$AH$2,FALSE) -> 0.00% | K35: =IFERROR(_xlfn.CONCAT("<-- Produces ",TEXT(ROUND(ABS(VLOOKUP(DataID,RateVolData!$A:$K,11,FALSE))*1000,-3),"$#,##0")," Earnings ",IF(VLOOKUP(DataID,RateVolData!$A:$K,11,FALSE)>=0,"Lift","Drag")),"") -> <-- Produces $0 Earnings Lift
B37: Comments/Observations:
B72: R2 | C72: =EOMONTH(BeginDate,1) -> 2022-01-31 | D72: =EOMONTH(C72,1) -> 2022-02-28 | E72: 2022-03-31 | F72: 2022-04-30 | G72: 2022-05-31 | H72: 2022-06-30 | I72: 2022-07-31 | J72: 2022-08-31 | K72: 2022-09-30 | L72: 2022-10-31 | M72: 2022-11-30 | N72: 2022-12-31 | O72: 2023-01-31 | P72: 2023-02-28 | Q72: 2023-03-31 | R72: 2023-04-30 | S72: 2023-05-31 | T72: 2023-06-30 | U72: 2023-07-31 | V72: 2023-08-31 | W72: 2023-09-30 | X72: 2023-10-31 | Y72: 2023-11-30 | Z72: 2023-12-31
B73: Actual End | C73: =IF(ShowEnd=FALSE,"",VLOOKUP(DataID,DataRange,Data!F$2,FALSE)) -> 0.00% | D73: =IF(ShowEnd=FALSE,"",VLOOKUP(DataID,DataRange,Data!G$2,FALSE)) -> 0.00% | E73: =IF(ShowEnd=FALSE,"",VLOOKUP(DataID,DataRange,Data!H$2,FALSE)) -> 0.00% | F73: =IF(ShowEnd=FALSE,"",VLOOKUP(DataID,DataRange,Data!I$2,FALSE)) -> 0.00% | G73: =IF(ShowEnd=FALSE,"",VLOOKUP(DataID,DataRange,Data!J$2,FALSE)) -> 0.00% | H73: =IF(ShowEnd=FALSE,"",VLOOKUP(DataID,DataRange,Data!K$2,FALSE)) -> 0.00% | I73: =IF(ShowEnd=FALSE,"",VLOOKUP(DataID,DataRange,Data!L$2,FALSE)) -> 0.00% | J73: =IF(ShowEnd=FALSE,"",VLOOKUP(DataID,DataRange,Data!M$2,FALSE)) -> 0.00% | K73: =IF(ShowEnd=FALSE,"",VLOOKUP(DataID,DataRange,Data!N$2,FALSE)) -> 0.00% | L73: =IF(ShowEnd=FALSE,"",VLOOKUP(DataID,DataRange,Data!O$2,FALSE)) -> 0.00% | M73: =IF(ShowEnd=FALSE,"",VLOOKUP(DataID,DataRange,Data!P$2,FALSE)) -> 0.00% | N73: =IF(ShowEnd=FALSE,"",VLOOKUP(DataID,DataRange,Data!Q$2,FALSE)) -> 0.00%
B74: Budget End | O74: =IF(ShowEnd=FALSE,"",VLOOKUP(DataID,DataRange,Data!S$2,FALSE)) -> 0.00% | P74: =IF(ShowEnd=FALSE,"",VLOOKUP(DataID,DataRange,Data!T$2,FALSE)) -> 0.00% | Q74: =IF(ShowEnd=FALSE,"",VLOOKUP(DataID,DataRange,Data!U$2,FALSE)) -> 0.00% | R74: =IF(ShowEnd=FALSE,"",VLOOKUP(DataID,DataRange,Data!V$2,FALSE)) -> 0.00% | S74: =IF(ShowEnd=FALSE,"",VLOOKUP(DataID,DataRange,Data!W$2,FALSE)) -> 0.00% | T74: =IF(ShowEnd=FALSE,"",VLOOKUP(DataID,DataRange,Data!X$2,FALSE)) -> 0.00% | U74: =IF(ShowEnd=FALSE,"",VLOOKUP(DataID,DataRange,Data!Y$2,FALSE)) -> 0.00% | V74: =IF(ShowEnd=FALSE,"",VLOOKUP(DataID,DataRange,Data!Z$2,FALSE)) -> 0.00% | W74: =IF(ShowEnd=FALSE,"",VLOOKUP(DataID,DataRange,Data!AA$2,FALSE)) -> 0.00% | X74: =IF(ShowEnd=FALSE,"",VLOOKUP(DataID,DataRange,Data!AB$2,FALSE)) -> 0.00% | Y74: =IF(ShowEnd=FALSE,"",VLOOKUP(DataID,DataRange,Data!AC$2,FALSE)) -> 0.00% | Z74: =IF(ShowEnd=FALSE,"",VLOOKUP(DataID,DataRange,Data!AD$2,FALSE)) -> 0.00%
B75: Actual Avg Daily | C75: =IF(ShowAvg=FALSE,"",VLOOKUP(DataID,DataRange,Data!AF$2,FALSE)) -> 0.00% | D75: =C75 -> 0.00% | E75: 0.00% | F75: 0.00% | G75: 0.00% | H75: 0.00% | I75: 0.00% | J75: 0.00% | K75: 0.00% | L75: 0.00% | M75: 0.00% | N75: 0.00%
B76: Budget Avg Daily | O76: =IF(ShowAvg=FALSE,"",VLOOKUP(DataID,DataRange,Data!AG$2,FALSE)) -> 0.00% | P76: =O76 -> 0.00% | Q76: =P76 -> 0.00% | R76: 0.00% | S76: 0.00% | T76: 0.00% | U76: 0.00% | V76: 0.00% | W76: 0.00% | X76: 0.00% | Y76: 0.00% | Z76: 0.00%
B78: =VLOOKUP(DataID,DataRange,Data!$C$2,FALSE) -> Cash and Surplus Funds Yield
B80: ; Shaded Area = Annual Average
B81: =IF(ShowAvg=FALSE,_xlfn.CONCAT(B78,B79),_xlfn.CONCAT(B78,B79,B80)) -> Cash and Surplus Funds Yield; Shaded Area = Annual Average
B83: TRUE | C83: Show Avg
B84: TRUE | C84: Show End
B86: =MIN(C73:Z76) -> 0.00% | C86: 90% | D86: -3 | E86: =ROUNDDOWN(B86*C86,-D86) -> 0.00% | F86: <--ChartMin
B87: =MAX(C73:Z76) -> 0.00% | C87: 110% | D87: -3 | E87: =ROUNDUP(B87*C87,-D87) -> 0.00% | F87: <--ChartMax

Sheet RelCost
D32: ="Gap Between "&TEXT(EOMONTH(BeginDate,12),"mmm yyy")&" and "&TEXT(EOMONTH(BeginDate,13),"mmm yyy") -> Gap Between Dec 2022 and Jan 2023 | J32: =VLOOKUP(DataID,DataRange,Data!S$2,FALSE)-VLOOKUP(DataID,DataRange,Data!Q$2,FALSE) -> 0.00% | K32: =IFERROR(_xlfn.CONCAT("<-- Gap Equal to ",TEXT(-(J32*RateVolData!D8)/AVERAGE(Data!$E$12:$Q$12),"0.00%")," ROA"),0) -> 0
D33: ="Average Cost in "&TEXT(EOMONTH(BeginDate,12),"yyy") -> Average Cost in 2022 | J33: =VLOOKUP(DataID,DataRange,Data!$AF$2,FALSE) -> 0.00%
D34: ="Budget Cost in "&TEXT(EOMONTH(BeginDate,24),"yyy") -> Budget Cost in 2023 | J34: =VLOOKUP(DataID,DataRange,Data!$AG$2,FALSE) -> 0.00%
D35: Change in Cost | J35: =VLOOKUP(DataID,DataRange,Data!$AH$2,FALSE) -> 0.00% | K35: =IFERROR(_xlfn.CONCAT("<-- Produces ",TEXT(ROUND(ABS(VLOOKUP(DataID,RateVolData!$A:$K,11,FALSE))*1000,-3),"$#,##0")," Earnings ",IF(VLOOKUP(DataID,RateVolData!$A:$K,11,FALSE)>=0,"Lift","Drag")),"") -> <-- Produces $0 Earnings Lift
B37: Comments/Observations:
B72: R3 | C72: =EOMONTH(BeginDate,1) -> 2022-01-31 | D72: =EOMONTH(C72,1) -> 2022-02-28 | E72: 2022-03-31 | F72: 2022-04-30 | G72: 2022-05-31 | H72: 2022-06-30 | I72: 2022-07-31 | J72: 2022-08-31 | K72: 2022-09-30 | L72: 2022-10-31 | M72: 2022-11-30 | N72: 2022-12-31 | O72: 2023-01-31 | P72: 2023-02-28 | Q72: 2023-03-31 | R72: 2023-04-30 | S72: 2023-05-31 | T72: 2023-06-30 | U72: 2023-07-31 | V72: 2023-08-31 | W72: 2023-09-30 | X72: 2023-10-31 | Y72: 2023-11-30 | Z72: 2023-12-31
B73: Actual End | C73: =IF(ShowEnd=FALSE,"",VLOOKUP(DataID,DataRange,Data!F$2,FALSE)) -> 0.00% | D73: =IF(ShowEnd=FALSE,"",VLOOKUP(DataID,DataRange,Data!G$2,FALSE)) -> 0.00% | E73: =IF(ShowEnd=FALSE,"",VLOOKUP(DataID,DataRange,Data!H$2,FALSE)) -> 0.00% | F73: =IF(ShowEnd=FALSE,"",VLOOKUP(DataID,DataRange,Data!I$2,FALSE)) -> 0.00% | G73: =IF(ShowEnd=FALSE,"",VLOOKUP(DataID,DataRange,Data!J$2,FALSE)) -> 0.00% | H73: =IF(ShowEnd=FALSE,"",VLOOKUP(DataID,DataRange,Data!K$2,FALSE)) -> 0.00% | I73: =IF(ShowEnd=FALSE,"",VLOOKUP(DataID,DataRange,Data!L$2,FALSE)) -> 0.00% | J73: =IF(ShowEnd=FALSE,"",VLOOKUP(DataID,DataRange,Data!M$2,FALSE)) -> 0.00% | K73: =IF(ShowEnd=FALSE,"",VLOOKUP(DataID,DataRange,Data!N$2,FALSE)) -> 0.00% | L73: =IF(ShowEnd=FALSE,"",VLOOKUP(DataID,DataRange,Data!O$2,FALSE)) -> 0.00% | M73: =IF(ShowEnd=FALSE,"",VLOOKUP(DataID,DataRange,Data!P$2,FALSE)) -> 0.00% | N73: =IF(ShowEnd=FALSE,"",VLOOKUP(DataID,DataRange,Data!Q$2,FALSE)) -> 0.00%
B74: Budget End | O74: =IF(ShowEnd=FALSE,"",VLOOKUP(DataID,DataRange,Data!S$2,FALSE)) -> 0.00% | P74: =IF(ShowEnd=FALSE,"",VLOOKUP(DataID,DataRange,Data!T$2,FALSE)) -> 0.00% | Q74: =IF(ShowEnd=FALSE,"",VLOOKUP(DataID,DataRange,Data!U$2,FALSE)) -> 0.00% | R74: =IF(ShowEnd=FALSE,"",VLOOKUP(DataID,DataRange,Data!V$2,FALSE)) -> 0.00% | S74: =IF(ShowEnd=FALSE,"",VLOOKUP(DataID,DataRange,Data!W$2,FALSE)) -> 0.00% | T74: =IF(ShowEnd=FALSE,"",VLOOKUP(DataID,DataRange,Data!X$2,FALSE)) -> 0.00% | U74: =IF(ShowEnd=FALSE,"",VLOOKUP(DataID,DataRange,Data!Y$2,FALSE)) -> 0.00% | V74: =IF(ShowEnd=FALSE,"",VLOOKUP(DataID,DataRange,Data!Z$2,FALSE)) -> 0.00% | W74: =IF(ShowEnd=FALSE,"",VLOOKUP(DataID,DataRange,Data!AA$2,FALSE)) -> 0.00% | X74: =IF(ShowEnd=FALSE,"",VLOOKUP(DataID,DataRange,Data!AB$2,FALSE)) -> 0.00% | Y74: =IF(ShowEnd=FALSE,"",VLOOKUP(DataID,DataRange,Data!AC$2,FALSE)) -> 0.00% | Z74: =IF(ShowEnd=FALSE,"",VLOOKUP(DataID,DataRange,Data!AD$2,FALSE)) -> 0.00%
B75: Actual Avg Daily | C75: =IF(ShowAvg=FALSE,"",VLOOKUP(DataID,DataRange,Data!AF$2,FALSE)) -> 0.00% | D75: =C75 -> 0.00% | E75: 0.00% | F75: 0.00% | G75: 0.00% | H75: 0.00% | I75: 0.00% | J75: 0.00% | K75: 0.00% | L75: 0.00% | M75: 0.00% | N75: 0.00%
B76: Budget Avg Daily | O76: =IF(ShowAvg=FALSE,"",VLOOKUP(DataID,DataRange,Data!AG$2,FALSE)) -> 0.00% | P76: =O76 -> 0.00% | Q76: =P76 -> 0.00% | R76: 0.00% | S76: 0.00% | T76: 0.00% | U76: 0.00% | V76: 0.00% | W76: 0.00% | X76: 0.00% | Y76: 0.00% | Z76: 0.00%
B78: =VLOOKUP(DataID,DataRange,Data!$C$2,FALSE) -> Cost of Relationship Deposits
B80: ; Shaded Area = Annual Average
B81: =IF(ShowAvg=FALSE,_xlfn.CONCAT(B78,B79),_xlfn.CONCAT(B78,B79,B80)) -> Cost of Relationship Deposits; Shaded Area = Annual Average
B83: TRUE | C83: Show Avg
B84: TRUE | C84: Show End
B86: =MIN(C73:Z76) -> 0.00% | C86: 90% | D86: -3 | E86: =ROUNDDOWN(B86*C86,-D86) -> 0.00% | F86: <--ChartMin
B87: =MAX(C73:Z76) -> 0.00% | C87: 110% | D87: -3 | E87: =ROUNDUP(B87*C87,-D87) -> 0.00% | F87: <--ChartMax

Sheet RSCost
D32: ="Gap Between "&TEXT(EOMONTH(BeginDate,12),"mmm yyy")&" and "&TEXT(EOMONTH(BeginDate,13),"mmm yyy") -> Gap Between Dec 2022 and Jan 2023 | J32: =VLOOKUP(DataID,DataRange,Data!S$2,FALSE)-VLOOKUP(DataID,DataRange,Data!Q$2,FALSE) -> 0.00% | K32: =IFERROR(_xlfn.CONCAT("<-- Gap Equal to ",TEXT(-(J32*RateVolData!D9)/AVERAGE(Data!$E$12:$Q$12),"0.00%")," ROA"),0) -> 0
D33: ="Average Cost in "&TEXT(EOMONTH(BeginDate,12),"yyy") -> Average Cost in 2022 | J33: =VLOOKUP(DataID,DataRange,Data!$AF$2,FALSE) -> 0.00%
D34: ="Budget Cost in "&TEXT(EOMONTH(BeginDate,24),"yyy") -> Budget Cost in 2023 | J34: =VLOOKUP(DataID,DataRange,Data!$AG$2,FALSE) -> 0.00%
D35: Change in Cost | J35: =VLOOKUP(DataID,DataRange,Data!$AH$2,FALSE) -> 0.00% | K35: =IFERROR(_xlfn.CONCAT("<-- Produces ",TEXT(ROUND(ABS(VLOOKUP(DataID,RateVolData!$A:$K,11,FALSE))*1000,-3),"$#,##0")," Earnings ",IF(VLOOKUP(DataID,RateVolData!$A:$K,11,FALSE)>=0,"Lift","Drag")),"") -> <-- Produces $0 Earnings Lift
B37: Comments/Observations:
B72: R4 | C72: =EOMONTH(BeginDate,1) -> 2022-01-31 | D72: =EOMONTH(C72,1) -> 2022-02-28 | E72: 2022-03-31 | F72: 2022-04-30 | G72: 2022-05-31 | H72: 2022-06-30 | I72: 2022-07-31 | J72: 2022-08-31 | K72: 2022-09-30 | L72: 2022-10-31 | M72: 2022-11-30 | N72: 2022-12-31 | O72: 2023-01-31 | P72: 2023-02-28 | Q72: 2023-03-31 | R72: 2023-04-30 | S72: 2023-05-31 | T72: 2023-06-30 | U72: 2023-07-31 | V72: 2023-08-31 | W72: 2023-09-30 | X72: 2023-10-31 | Y72: 2023-11-30 | Z72: 2023-12-31
B73: Actual End | C73: =IF(ShowEnd=FALSE,"",VLOOKUP(DataID,DataRange,Data!F$2,FALSE)) -> 0.00% | D73: =IF(ShowEnd=FALSE,"",VLOOKUP(DataID,DataRange,Data!G$2,FALSE)) -> 0.00% | E73: =IF(ShowEnd=FALSE,"",VLOOKUP(DataID,DataRange,Data!H$2,FALSE)) -> 0.00% | F73: =IF(ShowEnd=FALSE,"",VLOOKUP(DataID,DataRange,Data!I$2,FALSE)) -> 0.00% | G73: =IF(ShowEnd=FALSE,"",VLOOKUP(DataID,DataRange,Data!J$2,FALSE)) -> 0.00% | H73: =IF(ShowEnd=FALSE,"",VLOOKUP(DataID,DataRange,Data!K$2,FALSE)) -> 0.00% | I73: =IF(ShowEnd=FALSE,"",VLOOKUP(DataID,DataRange,Data!L$2,FALSE)) -> 0.00% | J73: =IF(ShowEnd=FALSE,"",VLOOKUP(DataID,DataRange,Data!M$2,FALSE)) -> 0.00% | K73: =IF(ShowEnd=FALSE,"",VLOOKUP(DataID,DataRange,Data!N$2,FALSE)) -> 0.00% | L73: =IF(ShowEnd=FALSE,"",VLOOKUP(DataID,DataRange,Data!O$2,FALSE)) -> 0.00% | M73: =IF(ShowEnd=FALSE,"",VLOOKUP(DataID,DataRange,Data!P$2,FALSE)) -> 0.00% | N73: =IF(ShowEnd=FALSE,"",VLOOKUP(DataID,DataRange,Data!Q$2,FALSE)) -> 0.00%
B74: Budget End | O74: =IF(ShowEnd=FALSE,"",VLOOKUP(DataID,DataRange,Data!S$2,FALSE)) -> 0.00% | P74: =IF(ShowEnd=FALSE,"",VLOOKUP(DataID,DataRange,Data!T$2,FALSE)) -> 0.00% | Q74: =IF(ShowEnd=FALSE,"",VLOOKUP(DataID,DataRange,Data!U$2,FALSE)) -> 0.00% | R74: =IF(ShowEnd=FALSE,"",VLOOKUP(DataID,DataRange,Data!V$2,FALSE)) -> 0.00% | S74: =IF(ShowEnd=FALSE,"",VLOOKUP(DataID,DataRange,Data!W$2,FALSE)) -> 0.00% | T74: =IF(ShowEnd=FALSE,"",VLOOKUP(DataID,DataRange,Data!X$2,FALSE)) -> 0.00% | U74: =IF(ShowEnd=FALSE,"",VLOOKUP(DataID,DataRange,Data!Y$2,FALSE)) -> 0.00% | V74: =IF(ShowEnd=FALSE,"",VLOOKUP(DataID,DataRange,Data!Z$2,FALSE)) -> 0.00% | W74: =IF(ShowEnd=FALSE,"",VLOOKUP(DataID,DataRange,Data!AA$2,FALSE)) -> 0.00% | X74: =IF(ShowEnd=FALSE,"",VLOOKUP(DataID,DataRange,Data!AB$2,FALSE)) -> 0.00% | Y74: =IF(ShowEnd=FALSE,"",VLOOKUP(DataID,DataRange,Data!AC$2,FALSE)) -> 0.00% | Z74: =IF(ShowEnd=FALSE,"",VLOOKUP(DataID,DataRange,Data!AD$2,FALSE)) -> 0.00%
B75: Actual Avg Daily | C75: =IF(ShowAvg=FALSE,"",VLOOKUP(DataID,DataRange,Data!AF$2,FALSE)) -> 0.00% | D75: =C75 -> 0.00% | E75: 0.00% | F75: 0.00% | G75: 0.00% | H75: 0.00% | I75: 0.00% | J75: 0.00% | K75: 0.00% | L75: 0.00% | M75: 0.00% | N75: 0.00%
B76: Budget Avg Daily | O76: =IF(ShowAvg=FALSE,"",VLOOKUP(DataID,DataRange,Data!AG$2,FALSE)) -> 0.00% | P76: =O76 -> 0.00% | Q76: =P76 -> 0.00% | R76: 0.00% | S76: 0.00% | T76: 0.00% | U76: 0.00% | V76: 0.00% | W76: 0.00% | X76: 0.00% | Y76: 0.00% | Z76: 0.00%
B78: =VLOOKUP(DataID,DataRange,Data!$C$2,FALSE) -> Cost of Rate Sensitive Funds
B80: ; Shaded Area = Annual Average
B81: =IF(ShowAvg=FALSE,_xlfn.CONCAT(B78,B79),_xlfn.CONCAT(B78,B79,B80)) -> Cost of Rate Sensitive Funds; Shaded Area = Annual Average
B83: TRUE | C83: Show Avg
B84: TRUE | C84: Show End
B86: =MIN(C73:Z76) -> 0.00% | C86: 90% | D86: -3 | E86: =ROUNDDOWN(B86*C86,-D86) -> 0.00% | F86: <--ChartMin
B87: =MAX(C73:Z76) -> 0.00% | C87: 110% | D87: -3 | E87: =ROUNDUP(B87*C87,-D87) -> 0.00% | F87: <--ChartMax

Sheet NIM
D32: ="Gap Between "&TEXT(EOMONTH(BeginDate,12),"mmm yyy")&" and "&TEXT(EOMONTH(BeginDate,13),"mmm yyy") -> Gap Between Dec 2022 and Jan 2023 | J32: =VLOOKUP(DataID,DataRange,Data!S$2,FALSE)-VLOOKUP(DataID,DataRange,Data!Q$2,FALSE) -> 0.00%
D33: ="Average Net Interest Margin in "&TEXT(EOMONTH(BeginDate,12),"yyy") -> Average Net Interest Margin in 2022 | J33: =VLOOKUP(DataID,DataRange,Data!$AF$2,FALSE) -> 0.00%
D34: ="Budget Net Interest Margin in "&TEXT(EOMONTH(BeginDate,24),"yyy") -> Budget Net Interest Margin in 2023 | J34: =VLOOKUP(DataID,DataRange,Data!$AG$2,FALSE) -> 0.00%
D35: Change in Net Interest Margin | J35: =VLOOKUP(DataID,DataRange,Data!$AH$2,FALSE) -> 0.00%
B37: Comments/Observations:
B72: R5 | C72: =EOMONTH(BeginDate,1) -> 2022-01-31 | D72: =EOMONTH(C72,1) -> 2022-02-28 | E72: 2022-03-31 | F72: 2022-04-30 | G72: 2022-05-31 | H72: 2022-06-30 | I72: 2022-07-31 | J72: 2022-08-31 | K72: 2022-09-30 | L72: 2022-10-31 | M72: 2022-11-30 | N72: 2022-12-31 | O72: 2023-01-31 | P72: 2023-02-28 | Q72: 2023-03-31 | R72: 2023-04-30 | S72: 2023-05-31 | T72: 2023-06-30 | U72: 2023-07-31 | V72: 2023-08-31 | W72: 2023-09-30 | X72: 2023-10-31 | Y72: 2023-11-30 | Z72: 2023-12-31
B73: Actual End | C73: =IF(ShowEnd=FALSE,"",VLOOKUP(DataID,DataRange,Data!F$2,FALSE)) -> 0.00% | D73: =IF(ShowEnd=FALSE,"",VLOOKUP(DataID,DataRange,Data!G$2,FALSE)) -> 0.00% | E73: =IF(ShowEnd=FALSE,"",VLOOKUP(DataID,DataRange,Data!H$2,FALSE)) -> 0.00% | F73: =IF(ShowEnd=FALSE,"",VLOOKUP(DataID,DataRange,Data!I$2,FALSE)) -> 0.00% | G73: =IF(ShowEnd=FALSE,"",VLOOKUP(DataID,DataRange,Data!J$2,FALSE)) -> 0.00% | H73: =IF(ShowEnd=FALSE,"",VLOOKUP(DataID,DataRange,Data!K$2,FALSE)) -> 0.00% | I73: =IF(ShowEnd=FALSE,"",VLOOKUP(DataID,DataRange,Data!L$2,FALSE)) -> 0.00% | J73: =IF(ShowEnd=FALSE,"",VLOOKUP(DataID,DataRange,Data!M$2,FALSE)) -> 0.00% | K73: =IF(ShowEnd=FALSE,"",VLOOKUP(DataID,DataRange,Data!N$2,FALSE)) -> 0.00% | L73: =IF(ShowEnd=FALSE,"",VLOOKUP(DataID,DataRange,Data!O$2,FALSE)) -> 0.00% | M73: =IF(ShowEnd=FALSE,"",VLOOKUP(DataID,DataRange,Data!P$2,FALSE)) -> 0.00% | N73: =IF(ShowEnd=FALSE,"",VLOOKUP(DataID,DataRange,Data!Q$2,FALSE)) -> 0.00%
B74: Budget End | O74: =IF(ShowEnd=FALSE,"",VLOOKUP(DataID,DataRange,Data!S$2,FALSE)) -> 0.00% | P74: =IF(ShowEnd=FALSE,"",VLOOKUP(DataID,DataRange,Data!T$2,FALSE)) -> 0.00% | Q74: =IF(ShowEnd=FALSE,"",VLOOKUP(DataID,DataRange,Data!U$2,FALSE)) -> 0.00% | R74: =IF(ShowEnd=FALSE,"",VLOOKUP(DataID,DataRange,Data!V$2,FALSE)) -> 0.00% | S74: =IF(ShowEnd=FALSE,"",VLOOKUP(DataID,DataRange,Data!W$2,FALSE)) -> 0.00% | T74: =IF(ShowEnd=FALSE,"",VLOOKUP(DataID,DataRange,Data!X$2,FALSE)) -> 0.00% | U74: =IF(ShowEnd=FALSE,"",VLOOKUP(DataID,DataRange,Data!Y$2,FALSE)) -> 0.00% | V74: =IF(ShowEnd=FALSE,"",VLOOKUP(DataID,DataRange,Data!Z$2,FALSE)) -> 0.00% | W74: =IF(ShowEnd=FALSE,"",VLOOKUP(DataID,DataRange,Data!AA$2,FALSE)) -> 0.00% | X74: =IF(ShowEnd=FALSE,"",VLOOKUP(DataID,DataRange,Data!AB$2,FALSE)) -> 0.00% | Y74: =IF(ShowEnd=FALSE,"",VLOOKUP(DataID,DataRange,Data!AC$2,FALSE)) -> 0.00% | Z74: =IF(ShowEnd=FALSE,"",VLOOKUP(DataID,DataRange,Data!AD$2,FALSE)) -> 0.00%
B75: Actual Avg Daily | C75: =IF(ShowAvg=FALSE,"",VLOOKUP(DataID,DataRange,Data!AF$2,FALSE)) -> 0.00% | D75: =C75 -> 0.00% | E75: 0.00% | F75: 0.00% | G75: 0.00% | H75: 0.00% | I75: 0.00% | J75: 0.00% | K75: 0.00% | L75: 0.00% | M75: 0.00% | N75: 0.00%
B76: Budget Avg Daily | O76: =IF(ShowAvg=FALSE,"",VLOOKUP(DataID,DataRange,Data!AG$2,FALSE)) -> 0.00% | P76: =O76 -> 0.00% | Q76: =P76 -> 0.00% | R76: 0.00% | S76: 0.00% | T76: 0.00% | U76: 0.00% | V76: 0.00% | W76: 0.00% | X76: 0.00% | Y76: 0.00% | Z76: 0.00%
B78: =VLOOKUP(DataID,DataRange,Data!$C$2,FALSE) -> Net Interest Margin
B80: ; Shaded Area = Annual Average
B81: =IF(ShowAvg=FALSE,_xlfn.CONCAT(B78,B79),_xlfn.CONCAT(B78,B79,B80)) -> Net Interest Margin; Shaded Area = Annual Average
B83: TRUE | C83: Show Avg
B84: TRUE | C84: Show End
B86: =MIN(C73:Z76) -> 0.00% | C86: 90% | D86: -3 | E86: =ROUNDDOWN(B86*C86,-D86) -> 0.00% | F86: <--ChartMin
B87: =MAX(C73:Z76) -> 0.00% | C87: 110% | D87: -3 | E87: =ROUNDUP(B87*C87,-D87) -> 0.00% | F87: <--ChartMax

Sheet NII
D32: =B78&" in "&TEXT(EOMONTH(BeginDate,12),"yyy") -> Non-Interest Income in 2022 | J32: =VLOOKUP(DataID,DataRange,Data!$AF$2,FALSE) -> 0
D33: ="Budget "&B78&" in "&TEXT(EOMONTH(BeginDate,24),"yyy") -> Budget Non-Interest Income in 2023 | J33: =VLOOKUP(DataID,DataRange,Data!$AG$2,FALSE) -> 0
D34: ="Change in "&B78 -> Change in Non-Interest Income | I34: =IFERROR(J34/J32,0) -> 0.0% | J34: =VLOOKUP(DataID,DataRange,Data!$AH$2,FALSE) -> 0
B37: Comments/Observations:
B72: I6 | C72: =EOMONTH(BeginDate,1) -> 2022-01-31 | D72: =EOMONTH(C72,1) -> 2022-02-28 | E72: 2022-03-31 | F72: 2022-04-30 | G72: 2022-05-31 | H72: 2022-06-30 | I72: 2022-07-31 | J72: 2022-08-31 | K72: 2022-09-30 | L72: 2022-10-31 | M72: 2022-11-30 | N72: 2022-12-31 | O72: 2023-01-31 | P72: 2023-02-28 | Q72: 2023-03-31 | R72: 2023-04-30 | S72: 2023-05-31 | T72: 2023-06-30 | U72: 2023-07-31 | V72: 2023-08-31 | W72: 2023-09-30 | X72: 2023-10-31 | Y72: 2023-11-30 | Z72: 2023-12-31
B73: Acutal | C73: =IF(ShowEnd=FALSE,"",VLOOKUP(DataID,DataRange,Data!F$2,FALSE)) -> 0 | D73: =IF(ShowEnd=FALSE,"",VLOOKUP(DataID,DataRange,Data!G$2,FALSE)) -> 0 | E73: =IF(ShowEnd=FALSE,"",VLOOKUP(DataID,DataRange,Data!H$2,FALSE)) -> 0 | F73: =IF(ShowEnd=FALSE,"",VLOOKUP(DataID,DataRange,Data!I$2,FALSE)) -> 0 | G73: =IF(ShowEnd=FALSE,"",VLOOKUP(DataID,DataRange,Data!J$2,FALSE)) -> 0 | H73: =IF(ShowEnd=FALSE,"",VLOOKUP(DataID,DataRange,Data!K$2,FALSE)) -> 0 | I73: =IF(ShowEnd=FALSE,"",VLOOKUP(DataID,DataRange,Data!L$2,FALSE)) -> 0 | J73: =IF(ShowEnd=FALSE,"",VLOOKUP(DataID,DataRange,Data!M$2,FALSE)) -> 0 | K73: =IF(ShowEnd=FALSE,"",VLOOKUP(DataID,DataRange,Data!N$2,FALSE)) -> 0 | L73: =IF(ShowEnd=FALSE,"",VLOOKUP(DataID,DataRange,Data!O$2,FALSE)) -> 0 | M73: =IF(ShowEnd=FALSE,"",VLOOKUP(DataID,DataRange,Data!P$2,FALSE)) -> 0 | N73: =IF(ShowEnd=FALSE,"",VLOOKUP(DataID,DataRange,Data!Q$2,FALSE)) -> 0
B74: Budget | O74: =IF(ShowEnd=FALSE,"",VLOOKUP(DataID,DataRange,Data!S$2,FALSE)) -> 0 | P74: =IF(ShowEnd=FALSE,"",VLOOKUP(DataID,DataRange,Data!T$2,FALSE)) -> 0 | Q74: =IF(ShowEnd=FALSE,"",VLOOKUP(DataID,DataRange,Data!U$2,FALSE)) -> 0 | R74: =IF(ShowEnd=FALSE,"",VLOOKUP(DataID,DataRange,Data!V$2,FALSE)) -> 0 | S74: =IF(ShowEnd=FALSE,"",VLOOKUP(DataID,DataRange,Data!W$2,FALSE)) -> 0 | T74: =IF(ShowEnd=FALSE,"",VLOOKUP(DataID,DataRange,Data!X$2,FALSE)) -> 0 | U74: =IF(ShowEnd=FALSE,"",VLOOKUP(DataID,DataRange,Data!Y$2,FALSE)) -> 0 | V74: =IF(ShowEnd=FALSE,"",VLOOKUP(DataID,DataRange,Data!Z$2,FALSE)) -> 0 | W74: =IF(ShowEnd=FALSE,"",VLOOKUP(DataID,DataRange,Data!AA$2,FALSE)) -> 0 | X74: =IF(ShowEnd=FALSE,"",VLOOKUP(DataID,DataRange,Data!AB$2,FALSE)) -> 0 | Y74: =IF(ShowEnd=FALSE,"",VLOOKUP(DataID,DataRange,Data!AC$2,FALSE)) -> 0 | Z74: =IF(ShowEnd=FALSE,"",VLOOKUP(DataID,DataRange,Data!AD$2,FALSE)) -> 0
B75: Actual Monthly Avg | C75: =IF(ShowAvg=FALSE,"",VLOOKUP(DataID,DataRange,Data!AF$2,FALSE)/12) -> 0 | D75: =C75 -> 0 | E75: 0 | F75: 0 | G75: 0 | H75: 0 | I75: 0 | J75: 0 | K75: 0 | L75: 0 | M75: 0 | N75: 0
B76: Budget Monthly Avg | O76: =IF(ShowAvg=FALSE,"",VLOOKUP(DataID,DataRange,Data!AG$2,FALSE)/12) -> 0 | P76: =O76 -> 0 | Q76: =P76 -> 0 | R76: 0 | S76: 0 | T76: 0 | U76: 0 | V76: 0 | W76: 0 | X76: 0 | Y76: 0 | Z76: 0
B78: =VLOOKUP(DataID,DataRange,Data!$C$2,FALSE) -> Non-Interest Income
B79: (000s)
B80: ; Shaded Area = Monthly Avg
B81: =IF(ShowAvg=FALSE,_xlfn.CONCAT(B78,B79),_xlfn.CONCAT(B78,B79,B80)) -> Non-Interest Income (000s); Shaded Area = Monthly Avg
B83: TRUE | C83: Show Avg
B84: TRUE | C84: Show End
B86: =MIN(C73:Z76) -> 0 | C86: 90% | D86: 2 | E86: =ROUNDDOWN(B86*C86,-D86) -> 0 | F86: <--ChartMin
B87: =MAX(C73:Z76) -> 0 | C87: 110% | D87: 2 | E87: =ROUNDUP(B87*C87,-D87) -> 0 | F87: <--ChartMax

Sheet NIE
D32: =B78&" in "&TEXT(EOMONTH(BeginDate,12),"yyy") -> Non-Interest Expense in 2022 | J32: =VLOOKUP(DataID,DataRange,Data!$AF$2,FALSE) -> 0
D33: ="Budget "&B78&" in "&TEXT(EOMONTH(BeginDate,24),"yyy") -> Budget Non-Interest Expense in 2023 | J33: =VLOOKUP(DataID,DataRange,Data!$AG$2,FALSE) -> 0
D34: ="Change in "&B78 -> Change in Non-Interest Expense | I34: =IFERROR(J34/J32,0) -> 0.0% | J34: =VLOOKUP(DataID,DataRange,Data!$AH$2,FALSE) -> 0
B37: Comments/Observations:
B72: I7 | C72: =EOMONTH(BeginDate,1) -> 2022-01-31 | D72: =EOMONTH(C72,1) -> 2022-02-28 | E72: 2022-03-31 | F72: 2022-04-30 | G72: 2022-05-31 | H72: 2022-06-30 | I72: 2022-07-31 | J72: 2022-08-31 | K72: 2022-09-30 | L72: 2022-10-31 | M72: 2022-11-30 | N72: 2022-12-31 | O72: 2023-01-31 | P72: 2023-02-28 | Q72: 2023-03-31 | R72: 2023-04-30 | S72: 2023-05-31 | T72: 2023-06-30 | U72: 2023-07-31 | V72: 2023-08-31 | W72: 2023-09-30 | X72: 2023-10-31 | Y72: 2023-11-30 | Z72: 2023-12-31
B73: Acutal | C73: =IF(ShowEnd=FALSE,"",VLOOKUP(DataID,DataRange,Data!F$2,FALSE)) -> 0 | D73: =IF(ShowEnd=FALSE,"",VLOOKUP(DataID,DataRange,Data!G$2,FALSE)) -> 0 | E73: =IF(ShowEnd=FALSE,"",VLOOKUP(DataID,DataRange,Data!H$2,FALSE)) -> 0 | F73: =IF(ShowEnd=FALSE,"",VLOOKUP(DataID,DataRange,Data!I$2,FALSE)) -> 0 | G73: =IF(ShowEnd=FALSE,"",VLOOKUP(DataID,DataRange,Data!J$2,FALSE)) -> 0 | H73: =IF(ShowEnd=FALSE,"",VLOOKUP(DataID,DataRange,Data!K$2,FALSE)) -> 0 | I73: =IF(ShowEnd=FALSE,"",VLOOKUP(DataID,DataRange,Data!L$2,FALSE)) -> 0 | J73: =IF(ShowEnd=FALSE,"",VLOOKUP(DataID,DataRange,Data!M$2,FALSE)) -> 0 | K73: =IF(ShowEnd=FALSE,"",VLOOKUP(DataID,DataRange,Data!N$2,FALSE)) -> 0 | L73: =IF(ShowEnd=FALSE,"",VLOOKUP(DataID,DataRange,Data!O$2,FALSE)) -> 0 | M73: =IF(ShowEnd=FALSE,"",VLOOKUP(DataID,DataRange,Data!P$2,FALSE)) -> 0 | N73: =IF(ShowEnd=FALSE,"",VLOOKUP(DataID,DataRange,Data!Q$2,FALSE)) -> 0
B74: Budget | O74: =IF(ShowEnd=FALSE,"",VLOOKUP(DataID,DataRange,Data!S$2,FALSE)) -> 0 | P74: =IF(ShowEnd=FALSE,"",VLOOKUP(DataID,DataRange,Data!T$2,FALSE)) -> 0 | Q74: =IF(ShowEnd=FALSE,"",VLOOKUP(DataID,DataRange,Data!U$2,FALSE)) -> 0 | R74: =IF(ShowEnd=FALSE,"",VLOOKUP(DataID,DataRange,Data!V$2,FALSE)) -> 0 | S74: =IF(ShowEnd=FALSE,"",VLOOKUP(DataID,DataRange,Data!W$2,FALSE)) -> 0 | T74: =IF(ShowEnd=FALSE,"",VLOOKUP(DataID,DataRange,Data!X$2,FALSE)) -> 0 | U74: =IF(ShowEnd=FALSE,"",VLOOKUP(DataID,DataRange,Data!Y$2,FALSE)) -> 0 | V74: =IF(ShowEnd=FALSE,"",VLOOKUP(DataID,DataRange,Data!Z$2,FALSE)) -> 0 | W74: =IF(ShowEnd=FALSE,"",VLOOKUP(DataID,DataRange,Data!AA$2,FALSE)) -> 0 | X74: =IF(ShowEnd=FALSE,"",VLOOKUP(DataID,DataRange,Data!AB$2,FALSE)) -> 0 | Y74: =IF(ShowEnd=FALSE,"",VLOOKUP(DataID,DataRange,Data!AC$2,FALSE)) -> 0 | Z74: =IF(ShowEnd=FALSE,"",VLOOKUP(DataID,DataRange,Data!AD$2,FALSE)) -> 0
B75: Actual Monthly Avg | C75: =IF(ShowAvg=FALSE,"",VLOOKUP(DataID,DataRange,Data!AF$2,FALSE)/12) -> 0 | D75: =C75 -> 0 | E75: 0 | F75: 0 | G75: 0 | H75: 0 | I75: 0 | J75: 0 | K75: 0 | L75: 0 | M75: 0 | N75: 0
B76: Budget Monthly Avg | O76: =IF(ShowAvg=FALSE,"",VLOOKUP(DataID,DataRange,Data!AG$2,FALSE)/12) -> 0 | P76: =O76 -> 0 | Q76: =P76 -> 0 | R76: 0 | S76: 0 | T76: 0 | U76: 0 | V76: 0 | W76: 0 | X76: 0 | Y76: 0 | Z76: 0
B78: =VLOOKUP(DataID,DataRange,Data!$C$2,FALSE) -> Non-Interest Expense
B79: (000s)
B80: ; Shaded Area = Monthly Avg
B81: =IF(ShowAvg=FALSE,_xlfn.CONCAT(B78,B79),_xlfn.CONCAT(B78,B79,B80)) -> Non-Interest Expense (000s); Shaded Area = Monthly Avg
B83: TRUE | C83: Show Avg
B84: TRUE | C84: Show End
B86: =MIN(C73:Z76) -> 0 | C86: 90% | D86: 2 | E86: =ROUNDDOWN(B86*C86,-D86) -> 0 | F86: <--ChartMin
B87: =MAX(C73:Z76) -> 0 | C87: 110% | D87: 2 | E87: =ROUNDUP(B87*C87,-D87) -> 0 | F87: <--ChartMax

Sheet Effic
D32: ="Average Efficiency in "&TEXT(EOMONTH(BeginDate,12),"yyy") -> Average Efficiency in 2022 | J32: =VLOOKUP(DataID,DataRange,Data!$AF$2,FALSE) -> 0.0%
D33: ="Budget Efficiency in "&TEXT(EOMONTH(BeginDate,24),"yyy") -> Budget Efficiency in 2023 | J33: =VLOOKUP(DataID,DataRange,Data!$AG$2,FALSE) -> 0.0%
D34: Change in Efficiency Ratio | J34: =VLOOKUP(DataID,DataRange,Data!$AH$2,FALSE) -> 0.0%
B37: Comments/Observations:
B72: Y1 | C72: =EOMONTH(BeginDate,1) -> 2022-01-31 | D72: =EOMONTH(C72,1) -> 2022-02-28 | E72: 2022-03-31 | F72: 2022-04-30 | G72: 2022-05-31 | H72: 2022-06-30 | I72: 2022-07-31 | J72: 2022-08-31 | K72: 2022-09-30 | L72: 2022-10-31 | M72: 2022-11-30 | N72: 2022-12-31 | O72: 2023-01-31 | P72: 2023-02-28 | Q72: 2023-03-31 | R72: 2023-04-30 | S72: 2023-05-31 | T72: 2023-06-30 | U72: 2023-07-31 | V72: 2023-08-31 | W72: 2023-09-30 | X72: 2023-10-31 | Y72: 2023-11-30 | Z72: 2023-12-31
B73: Actual YTD | C73: =IF(ShowEnd=FALSE,"",VLOOKUP(DataID,DataRange,Data!F$2,FALSE)) -> 0.0% | D73: =IF(ShowEnd=FALSE,"",VLOOKUP(DataID,DataRange,Data!G$2,FALSE)) -> 0.0% | E73: =IF(ShowEnd=FALSE,"",VLOOKUP(DataID,DataRange,Data!H$2,FALSE)) -> 0.0% | F73: =IF(ShowEnd=FALSE,"",VLOOKUP(DataID,DataRange,Data!I$2,FALSE)) -> 0.0% | G73: =IF(ShowEnd=FALSE,"",VLOOKUP(DataID,DataRange,Data!J$2,FALSE)) -> 0.0% | H73: =IF(ShowEnd=FALSE,"",VLOOKUP(DataID,DataRange,Data!K$2,FALSE)) -> 0.0% | I73: =IF(ShowEnd=FALSE,"",VLOOKUP(DataID,DataRange,Data!L$2,FALSE)) -> 0.0% | J73: =IF(ShowEnd=FALSE,"",VLOOKUP(DataID,DataRange,Data!M$2,FALSE)) -> 0.0% | K73: =IF(ShowEnd=FALSE,"",VLOOKUP(DataID,DataRange,Data!N$2,FALSE)) -> 0.0% | L73: =IF(ShowEnd=FALSE,"",VLOOKUP(DataID,DataRange,Data!O$2,FALSE)) -> 0.0% | M73: =IF(ShowEnd=FALSE,"",VLOOKUP(DataID,DataRange,Data!P$2,FALSE)) -> 0.0% | N73: =IF(ShowEnd=FALSE,"",VLOOKUP(DataID,DataRange,Data!Q$2,FALSE)) -> 0.0%
B74: Budget YTD | O74: =IF(ShowEnd=FALSE,"",VLOOKUP(DataID,DataRange,Data!S$2,FALSE)) -> 0.0% | P74: =IF(ShowEnd=FALSE,"",VLOOKUP(DataID,DataRange,Data!T$2,FALSE)) -> 0.0% | Q74: =IF(ShowEnd=FALSE,"",VLOOKUP(DataID,DataRange,Data!U$2,FALSE)) -> 0.0% | R74: =IF(ShowEnd=FALSE,"",VLOOKUP(DataID,DataRange,Data!V$2,FALSE)) -> 0.0% | S74: =IF(ShowEnd=FALSE,"",VLOOKUP(DataID,DataRange,Data!W$2,FALSE)) -> 0.0% | T74: =IF(ShowEnd=FALSE,"",VLOOKUP(DataID,DataRange,Data!X$2,FALSE)) -> 0.0% | U74: =IF(ShowEnd=FALSE,"",VLOOKUP(DataID,DataRange,Data!Y$2,FALSE)) -> 0.0% | V74: =IF(ShowEnd=FALSE,"",VLOOKUP(DataID,DataRange,Data!Z$2,FALSE)) -> 0.0% | W74: =IF(ShowEnd=FALSE,"",VLOOKUP(DataID,DataRange,Data!AA$2,FALSE)) -> 0.0% | X74: =IF(ShowEnd=FALSE,"",VLOOKUP(DataID,DataRange,Data!AB$2,FALSE)) -> 0.0% | Y74: =IF(ShowEnd=FALSE,"",VLOOKUP(DataID,DataRange,Data!AC$2,FALSE)) -> 0.0% | Z74: =IF(ShowEnd=FALSE,"",VLOOKUP(DataID,DataRange,Data!AD$2,FALSE)) -> 0.0%
B75: Actual Avg | C75: =IF(ShowAvg=FALSE,"",VLOOKUP(DataID,DataRange,Data!AF$2,FALSE)) -> 0.0% | D75: =C75 -> 0.0% | E75: 0.0% | F75: 0.0% | G75: 0.0% | H75: 0.0% | I75: 0.0% | J75: 0.0% | K75: 0.0% | L75: 0.0% | M75: 0.0% | N75: 0.0%
B76: Budget Avg | O76: =IF(ShowAvg=FALSE,"",VLOOKUP(DataID,DataRange,Data!AG$2,FALSE)) -> 0.0% | P76: =O76 -> 0.0% | Q76: =P76 -> 0.0% | R76: 0.0% | S76: 0.0% | T76: 0.0% | U76: 0.0% | V76: 0.0% | W76: 0.0% | X76: 0.0% | Y76: 0.0% | Z76: 0.0%
B78: =VLOOKUP(DataID,DataRange,Data!$C$2,FALSE) -> Efficiency Ratio
B80: ; Shaded Area = Annual Average
B81: =IF(ShowAvg=FALSE,_xlfn.CONCAT(B78,B79),_xlfn.CONCAT(B78,B79,B80)) -> Efficiency Ratio; Shaded Area = Annual Average
B83: TRUE | C83: Show Avg
B84: TRUE | C84: Show End
B86: =MIN(C73:Z76) -> 0.00% | C86: 90% | D86: -2 | E86: =ROUNDDOWN(B86*C86,-D86) -> 0.00% | F86: <--ChartMin
B87: =MAX(C73:Z76) -> 0.00% | C87: 110% | D87: -2 | E87: =ROUNDUP(B87*C87,-D87) -> 0.00% | F87: <--ChartMax

Sheet EOS
D32: ="Average Economy of Scale in "&TEXT(EOMONTH(BeginDate,12),"yyy") -> Average Economy of Scale in 2022 | J32: =VLOOKUP(DataID,DataRange,Data!$AF$2,FALSE) -> 0.00%
D33: ="Budget Economy of Scale in "&TEXT(EOMONTH(BeginDate,24),"yyy") -> Budget Economy of Scale in 2023 | J33: =VLOOKUP(DataID,DataRange,Data!$AG$2,FALSE) -> 0.00%
D34: Change in Economy of Scale Ratio | J34: =VLOOKUP(DataID,DataRange,Data!$AH$2,FALSE) -> 0.00%
B37: Comments/Observations:
B72: Y2 | C72: =EOMONTH(BeginDate,1) -> 2022-01-31 | D72: =EOMONTH(C72,1) -> 2022-02-28 | E72: 2022-03-31 | F72: 2022-04-30 | G72: 2022-05-31 | H72: 2022-06-30 | I72: 2022-07-31 | J72: 2022-08-31 | K72: 2022-09-30 | L72: 2022-10-31 | M72: 2022-11-30 | N72: 2022-12-31 | O72: 2023-01-31 | P72: 2023-02-28 | Q72: 2023-03-31 | R72: 2023-04-30 | S72: 2023-05-31 | T72: 2023-06-30 | U72: 2023-07-31 | V72: 2023-08-31 | W72: 2023-09-30 | X72: 2023-10-31 | Y72: 2023-11-30 | Z72: 2023-12-31
B73: Actual YTD | C73: =IF(ShowEnd=FALSE,"",VLOOKUP(DataID,DataRange,Data!F$2,FALSE)) -> 0.00% | D73: =IF(ShowEnd=FALSE,"",VLOOKUP(DataID,DataRange,Data!G$2,FALSE)) -> 0.00% | E73: =IF(ShowEnd=FALSE,"",VLOOKUP(DataID,DataRange,Data!H$2,FALSE)) -> 0.00% | F73: =IF(ShowEnd=FALSE,"",VLOOKUP(DataID,DataRange,Data!I$2,FALSE)) -> 0.00% | G73: =IF(ShowEnd=FALSE,"",VLOOKUP(DataID,DataRange,Data!J$2,FALSE)) -> 0.00% | H73: =IF(ShowEnd=FALSE,"",VLOOKUP(DataID,DataRange,Data!K$2,FALSE)) -> 0.00% | I73: =IF(ShowEnd=FALSE,"",VLOOKUP(DataID,DataRange,Data!L$2,FALSE)) -> 0.00% | J73: =IF(ShowEnd=FALSE,"",VLOOKUP(DataID,DataRange,Data!M$2,FALSE)) -> 0.00% | K73: =IF(ShowEnd=FALSE,"",VLOOKUP(DataID,DataRange,Data!N$2,FALSE)) -> 0.00% | L73: =IF(ShowEnd=FALSE,"",VLOOKUP(DataID,DataRange,Data!O$2,FALSE)) -> 0.00% | M73: =IF(ShowEnd=FALSE,"",VLOOKUP(DataID,DataRange,Data!P$2,FALSE)) -> 0.00% | N73: =IF(ShowEnd=FALSE,"",VLOOKUP(DataID,DataRange,Data!Q$2,FALSE)) -> 0.00%
B74: Budget YTD | O74: =IF(ShowEnd=FALSE,"",VLOOKUP(DataID,DataRange,Data!S$2,FALSE)) -> 0.00% | P74: =IF(ShowEnd=FALSE,"",VLOOKUP(DataID,DataRange,Data!T$2,FALSE)) -> 0.00% | Q74: =IF(ShowEnd=FALSE,"",VLOOKUP(DataID,DataRange,Data!U$2,FALSE)) -> 0.00% | R74: =IF(ShowEnd=FALSE,"",VLOOKUP(DataID,DataRange,Data!V$2,FALSE)) -> 0.00% | S74: =IF(ShowEnd=FALSE,"",VLOOKUP(DataID,DataRange,Data!W$2,FALSE)) -> 0.00% | T74: =IF(ShowEnd=FALSE,"",VLOOKUP(DataID,DataRange,Data!X$2,FALSE)) -> 0.00% | U74: =IF(ShowEnd=FALSE,"",VLOOKUP(DataID,DataRange,Data!Y$2,FALSE)) -> 0.00% | V74: =IF(ShowEnd=FALSE,"",VLOOKUP(DataID,DataRange,Data!Z$2,FALSE)) -> 0.00% | W74: =IF(ShowEnd=FALSE,"",VLOOKUP(DataID,DataRange,Data!AA$2,FALSE)) -> 0.00% | X74: =IF(ShowEnd=FALSE,"",VLOOKUP(DataID,DataRange,Data!AB$2,FALSE)) -> 0.00% | Y74: =IF(ShowEnd=FALSE,"",VLOOKUP(DataID,DataRange,Data!AC$2,FALSE)) -> 0.00% | Z74: =IF(ShowEnd=FALSE,"",VLOOKUP(DataID,DataRange,Data!AD$2,FALSE)) -> 0.00%
B75: Actual Avg | C75: =IF(ShowAvg=FALSE,"",VLOOKUP(DataID,DataRange,Data!AF$2,FALSE)) -> 0.00% | D75: =C75 -> 0.00% | E75: 0.00% | F75: 0.00% | G75: 0.00% | H75: 0.00% | I75: 0.00% | J75: 0.00% | K75: 0.00% | L75: 0.00% | M75: 0.00% | N75: 0.00%
B76: Budget Avg | O76: =IF(ShowAvg=FALSE,"",VLOOKUP(DataID,DataRange,Data!AG$2,FALSE)) -> 0.00% | P76: =O76 -> 0.00% | Q76: =P76 -> 0.00% | R76: 0.00% | S76: 0.00% | T76: 0.00% | U76: 0.00% | V76: 0.00% | W76: 0.00% | X76: 0.00% | Y76: 0.00% | Z76: 0.00%
B78: =VLOOKUP(DataID,DataRange,Data!$C$2,FALSE) -> Economy of Scale Ratio
B80: ; Shaded Area = Annual Average
B81: =IF(ShowAvg=FALSE,_xlfn.CONCAT(B78,B79),_xlfn.CONCAT(B78,B79,B80)) -> Economy of Scale Ratio; Shaded Area = Annual Average
B83: TRUE | C83: Show Avg
B84: TRUE | C84: Show End
B86: =MIN(C73:Z76) -> 0.00% | C86: 90% | D86: -3 | E86: =ROUNDDOWN(B86*C86,-D86) -> 0.00% | F86: <--ChartMin
B87: =MAX(C73:Z76) -> 0.00% | C87: 110% | D87: -3 | E87: =ROUNDUP(B87*C87,-D87) -> 0.00% | F87: <--ChartMax

Sheet NCO
D32: =B78&" in "&TEXT(EOMONTH(BeginDate,12),"yyy") -> Net Charge-Offs in 2022 | J32: =VLOOKUP(DataID,DataRange,Data!$AF$2,FALSE) -> 0 | K32: =IFERROR(_xlfn.CONCAT("<-- Equal to ",TEXT(J32/Data!$AF$8,"0.00%")," of Loans"),"") -> 
D33: ="Budget "&B78&" in "&TEXT(EOMONTH(BeginDate,24),"yyy") -> Budget Net Charge-Offs in 2023 | J33: =VLOOKUP(DataID,DataRange,Data!$AG$2,FALSE) -> 0 | K33: =IFERROR(_xlfn.CONCAT("<-- Equal to ",TEXT(J33/Data!$AG$8,"0.00%")," of Loans"),"") -> 
D34: ="Change in "&B78 -> Change in Net Charge-Offs | I34: =IFERROR(J34/J32,0) -> 0.0% | J34: =VLOOKUP(DataID,DataRange,Data!$AH$2,FALSE) -> 0 | K34: =IFERROR(_xlfn.CONCAT("<-- Equal to ",TEXT(J34/Data!$AG$12,"0.00%")," ROA"),"") -> 
B37: Comments/Observations:
B72: I8 | C72: =EOMONTH(BeginDate,1) -> 2022-01-31 | D72: =EOMONTH(C72,1) -> 2022-02-28 | E72: 2022-03-31 | F72: 2022-04-30 | G72: 2022-05-31 | H72: 2022-06-30 | I72: 2022-07-31 | J72: 2022-08-31 | K72: 2022-09-30 | L72: 2022-10-31 | M72: 2022-11-30 | N72: 2022-12-31 | O72: 2023-01-31 | P72: 2023-02-28 | Q72: 2023-03-31 | R72: 2023-04-30 | S72: 2023-05-31 | T72: 2023-06-30 | U72: 2023-07-31 | V72: 2023-08-31 | W72: 2023-09-30 | X72: 2023-10-31 | Y72: 2023-11-30 | Z72: 2023-12-31
B73: Acutal | C73: =IF(ShowEnd=FALSE,"",VLOOKUP(DataID,DataRange,Data!F$2,FALSE)) -> 0 | D73: =IF(ShowEnd=FALSE,"",VLOOKUP(DataID,DataRange,Data!G$2,FALSE)) -> 0 | E73: =IF(ShowEnd=FALSE,"",VLOOKUP(DataID,DataRange,Data!H$2,FALSE)) -> 0 | F73: =IF(ShowEnd=FALSE,"",VLOOKUP(DataID,DataRange,Data!I$2,FALSE)) -> 0 | G73: =IF(ShowEnd=FALSE,"",VLOOKUP(DataID,DataRange,Data!J$2,FALSE)) -> 0 | H73: =IF(ShowEnd=FALSE,"",VLOOKUP(DataID,DataRange,Data!K$2,FALSE)) -> 0 | I73: =IF(ShowEnd=FALSE,"",VLOOKUP(DataID,DataRange,Data!L$2,FALSE)) -> 0 | J73: =IF(ShowEnd=FALSE,"",VLOOKUP(DataID,DataRange,Data!M$2,FALSE)) -> 0 | K73: =IF(ShowEnd=FALSE,"",VLOOKUP(DataID,DataRange,Data!N$2,FALSE)) -> 0 | L73: =IF(ShowEnd=FALSE,"",VLOOKUP(DataID,DataRange,Data!O$2,FALSE)) -> 0 | M73: =IF(ShowEnd=FALSE,"",VLOOKUP(DataID,DataRange,Data!P$2,FALSE)) -> 0 | N73: =IF(ShowEnd=FALSE,"",VLOOKUP(DataID,DataRange,Data!Q$2,FALSE)) -> 0
B74: Budget | O74: =IF(ShowEnd=FALSE,"",VLOOKUP(DataID,DataRange,Data!S$2,FALSE)) -> 0 | P74: =IF(ShowEnd=FALSE,"",VLOOKUP(DataID,DataRange,Data!T$2,FALSE)) -> 0 | Q74: =IF(ShowEnd=FALSE,"",VLOOKUP(DataID,DataRange,Data!U$2,FALSE)) -> 0 | R74: =IF(ShowEnd=FALSE,"",VLOOKUP(DataID,DataRange,Data!V$2,FALSE)) -> 0 | S74: =IF(ShowEnd=FALSE,"",VLOOKUP(DataID,DataRange,Data!W$2,FALSE)) -> 0 | T74: =IF(ShowEnd=FALSE,"",VLOOKUP(DataID,DataRange,Data!X$2,FALSE)) -> 0 | U74: =IF(ShowEnd=FALSE,"",VLOOKUP(DataID,DataRange,Data!Y$2,FALSE)) -> 0 | V74: =IF(ShowEnd=FALSE,"",VLOOKUP(DataID,DataRange,Data!Z$2,FALSE)) -> 0 | W74: =IF(ShowEnd=FALSE,"",VLOOKUP(DataID,DataRange,Data!AA$2,FALSE)) -> 0 | X74: =IF(ShowEnd=FALSE,"",VLOOKUP(DataID,DataRange,Data!AB$2,FALSE)) -> 0 | Y74: =IF(ShowEnd=FALSE,"",VLOOKUP(DataID,DataRange,Data!AC$2,FALSE)) -> 0 | Z74: =IF(ShowEnd=FALSE,"",VLOOKUP(DataID,DataRange,Data!AD$2,FALSE)) -> 0
B75: Actual Monthly Avg | C75: =IF(ShowAvg=FALSE,"",VLOOKUP(DataID,DataRange,Data!AF$2,FALSE)/12) -> 0 | D75: =C75 -> 0 | E75: 0 | F75: 0 | G75: 0 | H75: 0 | I75: 0 | J75: 0 | K75: 0 | L75: 0 | M75: 0 | N75: 0
B76: Budget Monthly Avg | O76: =IF(ShowAvg=FALSE,"",VLOOKUP(DataID,DataRange,Data!AG$2,FALSE)/12) -> 0 | P76: =O76 -> 0 | Q76: =P76 -> 0 | R76: 0 | S76: 0 | T76: 0 | U76: 0 | V76: 0 | W76: 0 | X76: 0 | Y76: 0 | Z76: 0
B78: =VLOOKUP(DataID,DataRange,Data!$C$2,FALSE) -> Net Charge-Offs
B79: (000s)
B80: ; Shaded Area = Monthly Avg
B81: =IF(ShowAvg=FALSE,_xlfn.CONCAT(B78,B79),_xlfn.CONCAT(B78,B79,B80)) -> Net Charge-Offs (000s); Shaded Area = Monthly Avg
B83: TRUE | C83: Show Avg
B84: TRUE | C84: Show End
B86: =MIN(C73:Z76) -> 0 | C86: 90% | D86: 2 | E86: =IF(B86<0,ROUNDUP(B86/C86,-D86),ROUNDDOWN(B86*C86,-D86)) -> 0 | F86: <--ChartMin
B87: =MAX(C73:Z76) -> 0 | C87: 110% | D87: 2 | E87: =ROUNDUP(B87*C87,-D87) -> 0 | F87: <--ChartMax

Sheet PLLExp
D32: =B78&" in "&TEXT(EOMONTH(BeginDate,12),"yyy") -> Provision for Loan Loss Expense in 2022 | J32: =VLOOKUP(DataID,DataRange,Data!$AF$2,FALSE) -> 0 | K32: =IFERROR(_xlfn.CONCAT("<-- Equal to ",TEXT(J32/Data!$AF$8,"0.00%")," of Loans"),"") -> 
D33: ="Budget "&B78&" in "&TEXT(EOMONTH(BeginDate,24),"yyy") -> Budget Provision for Loan Loss Expense in 2023 | J33: =VLOOKUP(DataID,DataRange,Data!$AG$2,FALSE) -> 0 | K33: =IFERROR(_xlfn.CONCAT("<-- Equal to ",TEXT(J33/Data!$AG$8,"0.00%")," of Loans"),"") -> 
D34: ="Change in "&B78 -> Change in Provision for Loan Loss Expense | I34: =IFERROR(J34/J32,0) -> 0.0% | J34: =VLOOKUP(DataID,DataRange,Data!$AH$2,FALSE) -> 0 | K34: =IFERROR(_xlfn.CONCAT("<-- Equal to ",TEXT(J34/Data!$AG$12,"0.00%")," ROA"),"") -> 
B37: Comments/Observations:
B72: I9 | C72: =EOMONTH(BeginDate,1) -> 2022-01-31 | D72: =EOMONTH(C72,1) -> 2022-02-28 | E72: 2022-03-31 | F72: 2022-04-30 | G72: 2022-05-31 | H72: 2022-06-30 | I72: 2022-07-31 | J72: 2022-08-31 | K72: 2022-09-30 | L72: 2022-10-31 | M72: 2022-11-30 | N72: 2022-12-31 | O72: 2023-01-31 | P72: 2023-02-28 | Q72: 2023-03-31 | R72: 2023-04-30 | S72: 2023-05-31 | T72: 2023-06-30 | U72: 2023-07-31 | V72: 2023-08-31 | W72: 2023-09-30 | X72: 2023-10-31 | Y72: 2023-11-30 | Z72: 2023-12-31
B73: Acutal | C73: =IF(ShowEnd=FALSE,"",VLOOKUP(DataID,DataRange,Data!F$2,FALSE)) -> 0 | D73: =IF(ShowEnd=FALSE,"",VLOOKUP(DataID,DataRange,Data!G$2,FALSE)) -> 0 | E73: =IF(ShowEnd=FALSE,"",VLOOKUP(DataID,DataRange,Data!H$2,FALSE)) -> 0 | F73: =IF(ShowEnd=FALSE,"",VLOOKUP(DataID,DataRange,Data!I$2,FALSE)) -> 0 | G73: =IF(ShowEnd=FALSE,"",VLOOKUP(DataID,DataRange,Data!J$2,FALSE)) -> 0 | H73: =IF(ShowEnd=FALSE,"",VLOOKUP(DataID,DataRange,Data!K$2,FALSE)) -> 0 | I73: =IF(ShowEnd=FALSE,"",VLOOKUP(DataID,DataRange,Data!L$2,FALSE)) -> 0 | J73: =IF(ShowEnd=FALSE,"",VLOOKUP(DataID,DataRange,Data!M$2,FALSE)) -> 0 | K73: =IF(ShowEnd=FALSE,"",VLOOKUP(DataID,DataRange,Data!N$2,FALSE)) -> 0 | L73: =IF(ShowEnd=FALSE,"",VLOOKUP(DataID,DataRange,Data!O$2,FALSE)) -> 0 | M73: =IF(ShowEnd=FALSE,"",VLOOKUP(DataID,DataRange,Data!P$2,FALSE)) -> 0 | N73: =IF(ShowEnd=FALSE,"",VLOOKUP(DataID,DataRange,Data!Q$2,FALSE)) -> 0
B74: Budget | O74: =IF(ShowEnd=FALSE,"",VLOOKUP(DataID,DataRange,Data!S$2,FALSE)) -> 0 | P74: =IF(ShowEnd=FALSE,"",VLOOKUP(DataID,DataRange,Data!T$2,FALSE)) -> 0 | Q74: =IF(ShowEnd=FALSE,"",VLOOKUP(DataID,DataRange,Data!U$2,FALSE)) -> 0 | R74: =IF(ShowEnd=FALSE,"",VLOOKUP(DataID,DataRange,Data!V$2,FALSE)) -> 0 | S74: =IF(ShowEnd=FALSE,"",VLOOKUP(DataID,DataRange,Data!W$2,FALSE)) -> 0 | T74: =IF(ShowEnd=FALSE,"",VLOOKUP(DataID,DataRange,Data!X$2,FALSE)) -> 0 | U74: =IF(ShowEnd=FALSE,"",VLOOKUP(DataID,DataRange,Data!Y$2,FALSE)) -> 0 | V74: =IF(ShowEnd=FALSE,"",VLOOKUP(DataID,DataRange,Data!Z$2,FALSE)) -> 0 | W74: =IF(ShowEnd=FALSE,"",VLOOKUP(DataID,DataRange,Data!AA$2,FALSE)) -> 0 | X74: =IF(ShowEnd=FALSE,"",VLOOKUP(DataID,DataRange,Data!AB$2,FALSE)) -> 0 | Y74: =IF(ShowEnd=FALSE,"",VLOOKUP(DataID,DataRange,Data!AC$2,FALSE)) -> 0 | Z74: =IF(ShowEnd=FALSE,"",VLOOKUP(DataID,DataRange,Data!AD$2,FALSE)) -> 0
B75: Actual Monthly Avg | C75: =IF(ShowAvg=FALSE,"",VLOOKUP(DataID,DataRange,Data!AF$2,FALSE)/12) -> 0 | D75: =C75 -> 0 | E75: 0 | F75: 0 | G75: 0 | H75: 0 | I75: 0 | J75: 0 | K75: 0 | L75: 0 | M75: 0 | N75: 0
B76: Budget Monthly Avg | O76: =IF(ShowAvg=FALSE,"",VLOOKUP(DataID,DataRange,Data!AG$2,FALSE)/12) -> 0 | P76: =O76 -> 0 | Q76: =P76 -> 0 | R76: 0 | S76: 0 | T76: 0 | U76: 0 | V76: 0 | W76: 0 | X76: 0 | Y76: 0 | Z76: 0
B78: =VLOOKUP(DataID,DataRange,Data!$C$2,FALSE) -> Provision for Loan Loss Expense
B79: (000s)
B80: ; Shaded Area = Monthly Avg
B81: =IF(ShowAvg=FALSE,_xlfn.CONCAT(B78,B79),_xlfn.CONCAT(B78,B79,B80)) -> Provision for Loan Loss Expense (000s); Shaded Area = Monthly Avg
B83: TRUE | C83: Show Avg
B84: TRUE | C84: Show End
B86: =MIN(C73:Z76) -> 0 | C86: 90% | D86: 2 | E86: =IF(B86<0,ROUNDUP(B86/C86,-D86),ROUNDDOWN(B86*C86,-D86)) -> 0 | F86: <--ChartMin
B87: =MAX(C73:Z76) -> 0 | C87: 110% | D87: 2 | E87: =ROUNDUP(B87*C87,-D87) -> 0 | F87: <--ChartMax

Sheet LLRPct
D32: ="Gap Between "&TEXT(EOMONTH(BeginDate,12),"mmm yyy")&" and "&TEXT(EOMONTH(BeginDate,13),"mmm yyy") -> Gap Between Dec 2022 and Jan 2023 | J32: =VLOOKUP(DataID,DataRange,Data!S$2,FALSE)-VLOOKUP(DataID,DataRange,Data!Q$2,FALSE) -> 0.00%
B37: Comments/Observations:
B72: S1 | C72: =EOMONTH(BeginDate,1) -> 2022-01-31 | D72: =EOMONTH(C72,1) -> 2022-02-28 | E72: 2022-03-31 | F72: 2022-04-30 | G72: 2022-05-31 | H72: 2022-06-30 | I72: 2022-07-31 | J72: 2022-08-31 | K72: 2022-09-30 | L72: 2022-10-31 | M72: 2022-11-30 | N72: 2022-12-31 | O72: 2023-01-31 | P72: 2023-02-28 | Q72: 2023-03-31 | R72: 2023-04-30 | S72: 2023-05-31 | T72: 2023-06-30 | U72: 2023-07-31 | V72: 2023-08-31 | W72: 2023-09-30 | X72: 2023-10-31 | Y72: 2023-11-30 | Z72: 2023-12-31
B73: Actual End | C73: =IF(ShowEnd=FALSE,"",VLOOKUP(DataID,DataRange,Data!F$2,FALSE)) -> 0.00% | D73: =IF(ShowEnd=FALSE,"",VLOOKUP(DataID,DataRange,Data!G$2,FALSE)) -> 0.00% | E73: =IF(ShowEnd=FALSE,"",VLOOKUP(DataID,DataRange,Data!H$2,FALSE)) -> 0.00% | F73: =IF(ShowEnd=FALSE,"",VLOOKUP(DataID,DataRange,Data!I$2,FALSE)) -> 0.00% | G73: =IF(ShowEnd=FALSE,"",VLOOKUP(DataID,DataRange,Data!J$2,FALSE)) -> 0.00% | H73: =IF(ShowEnd=FALSE,"",VLOOKUP(DataID,DataRange,Data!K$2,FALSE)) -> 0.00% | I73: =IF(ShowEnd=FALSE,"",VLOOKUP(DataID,DataRange,Data!L$2,FALSE)) -> 0.00% | J73: =IF(ShowEnd=FALSE,"",VLOOKUP(DataID,DataRange,Data!M$2,FALSE)) -> 0.00% | K73: =IF(ShowEnd=FALSE,"",VLOOKUP(DataID,DataRange,Data!N$2,FALSE)) -> 0.00% | L73: =IF(ShowEnd=FALSE,"",VLOOKUP(DataID,DataRange,Data!O$2,FALSE)) -> 0.00% | M73: =IF(ShowEnd=FALSE,"",VLOOKUP(DataID,DataRange,Data!P$2,FALSE)) -> 0.00% | N73: =IF(ShowEnd=FALSE,"",VLOOKUP(DataID,DataRange,Data!Q$2,FALSE)) -> 0.00%
B74: Budget End | O74: =IF(ShowEnd=FALSE,"",VLOOKUP(DataID,DataRange,Data!S$2,FALSE)) -> 0.00% | P74: =IF(ShowEnd=FALSE,"",VLOOKUP(DataID,DataRange,Data!T$2,FALSE)) -> 0.00% | Q74: =IF(ShowEnd=FALSE,"",VLOOKUP(DataID,DataRange,Data!U$2,FALSE)) -> 0.00% | R74: =IF(ShowEnd=FALSE,"",VLOOKUP(DataID,DataRange,Data!V$2,FALSE)) -> 0.00% | S74: =IF(ShowEnd=FALSE,"",VLOOKUP(DataID,DataRange,Data!W$2,FALSE)) -> 0.00% | T74: =IF(ShowEnd=FALSE,"",VLOOKUP(DataID,DataRange,Data!X$2,FALSE)) -> 0.00% | U74: =IF(ShowEnd=FALSE,"",VLOOKUP(DataID,DataRange,Data!Y$2,FALSE)) -> 0.00% | V74: =IF(ShowEnd=FALSE,"",VLOOKUP(DataID,DataRange,Data!Z$2,FALSE)) -> 0.00% | W74: =IF(ShowEnd=FALSE,"",VLOOKUP(DataID,DataRange,Data!AA$2,FALSE)) -> 0.00% | X74: =IF(ShowEnd=FALSE,"",VLOOKUP(DataID,DataRange,Data!AB$2,FALSE)) -> 0.00% | Y74: =IF(ShowEnd=FALSE,"",VLOOKUP(DataID,DataRange,Data!AC$2,FALSE)) -> 0.00% | Z74: =IF(ShowEnd=FALSE,"",VLOOKUP(DataID,DataRange,Data!AD$2,FALSE)) -> 0.00%
B78: =VLOOKUP(DataID,DataRange,Data!$C$2,FALSE) -> Loan Loss Reserve
B79: (Percent of Loans)
B81: =IF(ShowAvg=FALSE,_xlfn.CONCAT(B78,B79),_xlfn.CONCAT(B78,B79,B80)) -> Loan Loss Reserve (Percent of Loans)
B83: TRUE | C83: Show Avg
B84: TRUE | C84: Show End
B86: =MIN(C73:Z76) -> 0.00% | C86: 90% | D86: -3 | E86: =ROUNDDOWN(B86*C86,-D86) -> 0.00% | F86: <--ChartMin
B87: =MAX(C73:Z76) -> 0.00% | C87: 110% | D87: -3 | E87: =ROUNDUP(B87*C87,-D87) -> 0.00% | F87: <--ChartMax

Sheet TSR
D32: ="Gap Between "&TEXT(EOMONTH(BeginDate,12),"mmm yyy")&" and "&TEXT(EOMONTH(BeginDate,13),"mmm yyy") -> Gap Between Dec 2022 and Jan 2023 | J32: =VLOOKUP(DataID,DataRange,Data!S$2,FALSE)-VLOOKUP(DataID,DataRange,Data!Q$2,FALSE) -> 0.0%
B37: Comments/Observations:
B72: S2 | C72: =EOMONTH(BeginDate,1) -> 2022-01-31 | D72: =EOMONTH(C72,1) -> 2022-02-28 | E72: 2022-03-31 | F72: 2022-04-30 | G72: 2022-05-31 | H72: 2022-06-30 | I72: 2022-07-31 | J72: 2022-08-31 | K72: 2022-09-30 | L72: 2022-10-31 | M72: 2022-11-30 | N72: 2022-12-31 | O72: 2023-01-31 | P72: 2023-02-28 | Q72: 2023-03-31 | R72: 2023-04-30 | S72: 2023-05-31 | T72: 2023-06-30 | U72: 2023-07-31 | V72: 2023-08-31 | W72: 2023-09-30 | X72: 2023-10-31 | Y72: 2023-11-30 | Z72: 2023-12-31
B73: Actual End | C73: =IF(ShowEnd=FALSE,"",VLOOKUP(DataID,DataRange,Data!F$2,FALSE)) -> 0.0% | D73: =IF(ShowEnd=FALSE,"",VLOOKUP(DataID,DataRange,Data!G$2,FALSE)) -> 0.0% | E73: =IF(ShowEnd=FALSE,"",VLOOKUP(DataID,DataRange,Data!H$2,FALSE)) -> 0.0% | F73: =IF(ShowEnd=FALSE,"",VLOOKUP(DataID,DataRange,Data!I$2,FALSE)) -> 0.0% | G73: =IF(ShowEnd=FALSE,"",VLOOKUP(DataID,DataRange,Data!J$2,FALSE)) -> 0.0% | H73: =IF(ShowEnd=FALSE,"",VLOOKUP(DataID,DataRange,Data!K$2,FALSE)) -> 0.0% | I73: =IF(ShowEnd=FALSE,"",VLOOKUP(DataID,DataRange,Data!L$2,FALSE)) -> 0.0% | J73: =IF(ShowEnd=FALSE,"",VLOOKUP(DataID,DataRange,Data!M$2,FALSE)) -> 0.0% | K73: =IF(ShowEnd=FALSE,"",VLOOKUP(DataID,DataRange,Data!N$2,FALSE)) -> 0.0% | L73: =IF(ShowEnd=FALSE,"",VLOOKUP(DataID,DataRange,Data!O$2,FALSE)) -> 0.0% | M73: =IF(ShowEnd=FALSE,"",VLOOKUP(DataID,DataRange,Data!P$2,FALSE)) -> 0.0% | N73: =IF(ShowEnd=FALSE,"",VLOOKUP(DataID,DataRange,Data!Q$2,FALSE)) -> 0.0%
B74: Budget End | O74: =IF(ShowEnd=FALSE,"",VLOOKUP(DataID,DataRange,Data!S$2,FALSE)) -> 0.0% | P74: =IF(ShowEnd=FALSE,"",VLOOKUP(DataID,DataRange,Data!T$2,FALSE)) -> 0.0% | Q74: =IF(ShowEnd=FALSE,"",VLOOKUP(DataID,DataRange,Data!U$2,FALSE)) -> 0.0% | R74: =IF(ShowEnd=FALSE,"",VLOOKUP(DataID,DataRange,Data!V$2,FALSE)) -> 0.0% | S74: =IF(ShowEnd=FALSE,"",VLOOKUP(DataID,DataRange,Data!W$2,FALSE)) -> 0.0% | T74: =IF(ShowEnd=FALSE,"",VLOOKUP(DataID,DataRange,Data!X$2,FALSE)) -> 0.0% | U74: =IF(ShowEnd=FALSE,"",VLOOKUP(DataID,DataRange,Data!Y$2,FALSE)) -> 0.0% | V74: =IF(ShowEnd=FALSE,"",VLOOKUP(DataID,DataRange,Data!Z$2,FALSE)) -> 0.0% | W74: =IF(ShowEnd=FALSE,"",VLOOKUP(DataID,DataRange,Data!AA$2,FALSE)) -> 0.0% | X74: =IF(ShowEnd=FALSE,"",VLOOKUP(DataID,DataRange,Data!AB$2,FALSE)) -> 0.0% | Y74: =IF(ShowEnd=FALSE,"",VLOOKUP(DataID,DataRange,Data!AC$2,FALSE)) -> 0.0% | Z74: =IF(ShowEnd=FALSE,"",VLOOKUP(DataID,DataRange,Data!AD$2,FALSE)) -> 0.0%
B78: =VLOOKUP(DataID,DataRange,Data!$C$2,FALSE) -> Equity + Loan Loss Reserve as Percent of Loans
B79: (Percent of Loans)
B81: =IF(ShowAvg=FALSE,_xlfn.CONCAT(B78,B79),_xlfn.CONCAT(B78,B79,B80)) -> Equity + Loan Loss Reserve as Percent of Loans (Percent of Loans)
B83: TRUE | C83: Show Avg
B84: TRUE | C84: Show End
B86: =MIN(C73:Z76) -> 0.00% | C86: 90% | D86: -3 | E86: =ROUNDDOWN(B86*C86,-D86) -> 0.00% | F86: <--ChartMin
B87: =MAX(C73:Z76) -> 0.00% | C87: 110% | D87: -3 | E87: =ROUNDUP(B87*C87,-D87) -> 0.00% | F87: <--ChartMax

Sheet EqAssets
D32: ="Gap Between "&TEXT(EOMONTH(BeginDate,12),"mmm yyy")&" and "&TEXT(EOMONTH(BeginDate,13),"mmm yyy") -> Gap Between Dec 2022 and Jan 2023 | J32: =VLOOKUP(DataID,DataRange,Data!S$2,FALSE)-VLOOKUP(DataID,DataRange,Data!Q$2,FALSE) -> 0.0%
B37: Comments/Observations:
B72: S3 | C72: =EOMONTH(BeginDate,1) -> 2022-01-31 | D72: =EOMONTH(C72,1) -> 2022-02-28 | E72: 2022-03-31 | F72: 2022-04-30 | G72: 2022-05-31 | H72: 2022-06-30 | I72: 2022-07-31 | J72: 2022-08-31 | K72: 2022-09-30 | L72: 2022-10-31 | M72: 2022-11-30 | N72: 2022-12-31 | O72: 2023-01-31 | P72: 2023-02-28 | Q72: 2023-03-31 | R72: 2023-04-30 | S72: 2023-05-31 | T72: 2023-06-30 | U72: 2023-07-31 | V72: 2023-08-31 | W72: 2023-09-30 | X72: 2023-10-31 | Y72: 2023-11-30 | Z72: 2023-12-31
B73: Actual End | C73: =IF(ShowEnd=FALSE,"",VLOOKUP(DataID,DataRange,Data!F$2,FALSE)) -> 0.0% | D73: =IF(ShowEnd=FALSE,"",VLOOKUP(DataID,DataRange,Data!G$2,FALSE)) -> 0.0% | E73: =IF(ShowEnd=FALSE,"",VLOOKUP(DataID,DataRange,Data!H$2,FALSE)) -> 0.0% | F73: =IF(ShowEnd=FALSE,"",VLOOKUP(DataID,DataRange,Data!I$2,FALSE)) -> 0.0% | G73: =IF(ShowEnd=FALSE,"",VLOOKUP(DataID,DataRange,Data!J$2,FALSE)) -> 0.0% | H73: =IF(ShowEnd=FALSE,"",VLOOKUP(DataID,DataRange,Data!K$2,FALSE)) -> 0.0% | I73: =IF(ShowEnd=FALSE,"",VLOOKUP(DataID,DataRange,Data!L$2,FALSE)) -> 0.0% | J73: =IF(ShowEnd=FALSE,"",VLOOKUP(DataID,DataRange,Data!M$2,FALSE)) -> 0.0% | K73: =IF(ShowEnd=FALSE,"",VLOOKUP(DataID,DataRange,Data!N$2,FALSE)) -> 0.0% | L73: =IF(ShowEnd=FALSE,"",VLOOKUP(DataID,DataRange,Data!O$2,FALSE)) -> 0.0% | M73: =IF(ShowEnd=FALSE,"",VLOOKUP(DataID,DataRange,Data!P$2,FALSE)) -> 0.0% | N73: =IF(ShowEnd=FALSE,"",VLOOKUP(DataID,DataRange,Data!Q$2,FALSE)) -> 0.0%
B74: Budget End | O74: =IF(ShowEnd=FALSE,"",VLOOKUP(DataID,DataRange,Data!S$2,FALSE)) -> 0.0% | P74: =IF(ShowEnd=FALSE,"",VLOOKUP(DataID,DataRange,Data!T$2,FALSE)) -> 0.0% | Q74: =IF(ShowEnd=FALSE,"",VLOOKUP(DataID,DataRange,Data!U$2,FALSE)) -> 0.0% | R74: =IF(ShowEnd=FALSE,"",VLOOKUP(DataID,DataRange,Data!V$2,FALSE)) -> 0.0% | S74: =IF(ShowEnd=FALSE,"",VLOOKUP(DataID,DataRange,Data!W$2,FALSE)) -> 0.0% | T74: =IF(ShowEnd=FALSE,"",VLOOKUP(DataID,DataRange,Data!X$2,FALSE)) -> 0.0% | U74: =IF(ShowEnd=FALSE,"",VLOOKUP(DataID,DataRange,Data!Y$2,FALSE)) -> 0.0% | V74: =IF(ShowEnd=FALSE,"",VLOOKUP(DataID,DataRange,Data!Z$2,FALSE)) -> 0.0% | W74: =IF(ShowEnd=FALSE,"",VLOOKUP(DataID,DataRange,Data!AA$2,FALSE)) -> 0.0% | X74: =IF(ShowEnd=FALSE,"",VLOOKUP(DataID,DataRange,Data!AB$2,FALSE)) -> 0.0% | Y74: =IF(ShowEnd=FALSE,"",VLOOKUP(DataID,DataRange,Data!AC$2,FALSE)) -> 0.0% | Z74: =IF(ShowEnd=FALSE,"",VLOOKUP(DataID,DataRange,Data!AD$2,FALSE)) -> 0.0%
B78: =VLOOKUP(DataID,DataRange,Data!$C$2,FALSE) -> Equity as Percent of Assets
B79: (Percent of Loans)
B81: =IF(ShowAvg=FALSE,_xlfn.CONCAT(B78,B79),_xlfn.CONCAT(B78,B79,B80)) -> Equity as Percent of Assets (Percent of Loans)
B83: TRUE | C83: Show Avg
B84: TRUE | C84: Show End
B86: =MIN(C73:Z76) -> 0.00% | C86: 90% | D86: -3 | E86: =ROUNDDOWN(B86*C86,-D86) -> 0.00% | F86: <--ChartMin
B87: =MAX(C73:Z76) -> 0.00% | C87: 110% | D87: -3 | E87: =ROUNDUP(B87*C87,-D87) -> 0.00% | F87: <--ChartMax

Sheet NetInc
D32: =B78&" in "&TEXT(EOMONTH(BeginDate,12),"yyy") -> Pretax Operating Net Income in 2022 | J32: =VLOOKUP(DataID,DataRange,Data!$AF$2,FALSE) -> 0
D33: ="Budget "&B78&" in "&TEXT(EOMONTH(BeginDate,24),"yyy") -> Budget Pretax Operating Net Income in 2023 | J33: =VLOOKUP(DataID,DataRange,Data!$AG$2,FALSE) -> 0
D34: ="Change in "&B78 -> Change in Pretax Operating Net Income | I34: =IFERROR(J34/J32,0) -> 0.0% | J34: =VLOOKUP(DataID,DataRange,Data!$AH$2,FALSE) -> 0
B37: Comments/Observations:
B72: N1 | C72: =EOMONTH(BeginDate,1) -> 2022-01-31 | D72: =EOMONTH(C72,1) -> 2022-02-28 | E72: 2022-03-31 | F72: 2022-04-30 | G72: 2022-05-31 | H72: 2022-06-30 | I72: 2022-07-31 | J72: 2022-08-31 | K72: 2022-09-30 | L72: 2022-10-31 | M72: 2022-11-30 | N72: 2022-12-31 | O72: 2023-01-31 | P72: 2023-02-28 | Q72: 2023-03-31 | R72: 2023-04-30 | S72: 2023-05-31 | T72: 2023-06-30 | U72: 2023-07-31 | V72: 2023-08-31 | W72: 2023-09-30 | X72: 2023-10-31 | Y72: 2023-11-30 | Z72: 2023-12-31
B73: Acutal | C73: =IF(ShowEnd=FALSE,"",VLOOKUP(DataID,DataRange,Data!F$2,FALSE)) -> 0 | D73: =IF(ShowEnd=FALSE,"",VLOOKUP(DataID,DataRange,Data!G$2,FALSE)) -> 0 | E73: =IF(ShowEnd=FALSE,"",VLOOKUP(DataID,DataRange,Data!H$2,FALSE)) -> 0 | F73: =IF(ShowEnd=FALSE,"",VLOOKUP(DataID,DataRange,Data!I$2,FALSE)) -> 0 | G73: =IF(ShowEnd=FALSE,"",VLOOKUP(DataID,DataRange,Data!J$2,FALSE)) -> 0 | H73: =IF(ShowEnd=FALSE,"",VLOOKUP(DataID,DataRange,Data!K$2,FALSE)) -> 0 | I73: =IF(ShowEnd=FALSE,"",VLOOKUP(DataID,DataRange,Data!L$2,FALSE)) -> 0 | J73: =IF(ShowEnd=FALSE,"",VLOOKUP(DataID,DataRange,Data!M$2,FALSE)) -> 0 | K73: =IF(ShowEnd=FALSE,"",VLOOKUP(DataID,DataRange,Data!N$2,FALSE)) -> 0 | L73: =IF(ShowEnd=FALSE,"",VLOOKUP(DataID,DataRange,Data!O$2,FALSE)) -> 0 | M73: =IF(ShowEnd=FALSE,"",VLOOKUP(DataID,DataRange,Data!P$2,FALSE)) -> 0 | N73: =IF(ShowEnd=FALSE,"",VLOOKUP(DataID,DataRange,Data!Q$2,FALSE)) -> 0
B74: Budget | O74: =IF(ShowEnd=FALSE,"",VLOOKUP(DataID,DataRange,Data!S$2,FALSE)) -> 0 | P74: =IF(ShowEnd=FALSE,"",VLOOKUP(DataID,DataRange,Data!T$2,FALSE)) -> 0 | Q74: =IF(ShowEnd=FALSE,"",VLOOKUP(DataID,DataRange,Data!U$2,FALSE)) -> 0 | R74: =IF(ShowEnd=FALSE,"",VLOOKUP(DataID,DataRange,Data!V$2,FALSE)) -> 0 | S74: =IF(ShowEnd=FALSE,"",VLOOKUP(DataID,DataRange,Data!W$2,FALSE)) -> 0 | T74: =IF(ShowEnd=FALSE,"",VLOOKUP(DataID,DataRange,Data!X$2,FALSE)) -> 0 | U74: =IF(ShowEnd=FALSE,"",VLOOKUP(DataID,DataRange,Data!Y$2,FALSE)) -> 0 | V74: =IF(ShowEnd=FALSE,"",VLOOKUP(DataID,DataRange,Data!Z$2,FALSE)) -> 0 | W74: =IF(ShowEnd=FALSE,"",VLOOKUP(DataID,DataRange,Data!AA$2,FALSE)) -> 0 | X74: =IF(ShowEnd=FALSE,"",VLOOKUP(DataID,DataRange,Data!AB$2,FALSE)) -> 0 | Y74: =IF(ShowEnd=FALSE,"",VLOOKUP(DataID,DataRange,Data!AC$2,FALSE)) -> 0 | Z74: =IF(ShowEnd=FALSE,"",VLOOKUP(DataID,DataRange,Data!AD$2,FALSE)) -> 0
B75: Actual Monthly Avg | C75: =IF(ShowAvg=FALSE,"",VLOOKUP(DataID,DataRange,Data!AF$2,FALSE)/12) -> 0 | D75: =C75 -> 0 | E75: 0 | F75: 0 | G75: 0 | H75: 0 | I75: 0 | J75: 0 | K75: 0 | L75: 0 | M75: 0 | N75: 0
B76: Budget Monthly Avg | O76: =IF(ShowAvg=FALSE,"",VLOOKUP(DataID,DataRange,Data!AG$2,FALSE)/12) -> 0 | P76: =O76 -> 0 | Q76: =P76 -> 0 | R76: 0 | S76: 0 | T76: 0 | U76: 0 | V76: 0 | W76: 0 | X76: 0 | Y76: 0 | Z76: 0
B78: =VLOOKUP(DataID,DataRange,Data!$C$2,FALSE) -> Pretax Operating Net Income
B79: (000s)
B80: ; Shaded Area = Monthly Avg
B81: =IF(ShowAvg=FALSE,_xlfn.CONCAT(B78,B79),_xlfn.CONCAT(B78,B79,B80)) -> Pretax Operating Net Income (000s); Shaded Area = Monthly Avg
B83: TRUE | C83: Show Avg
B84: TRUE | C84: Show End
B86: =MIN(C73:Z76) -> 0 | C86: 90% | D86: 2 | E86: =ROUNDDOWN(B86*C86,-D86) -> 0 | F86: <--ChartMin
B87: =MAX(C73:Z76) -> 0 | C87: 110% | D87: 2 | E87: =ROUNDUP(B87*C87,-D87) -> 0 | F87: <--ChartMax

Sheet ROA
B1: `
D32: =B78&" in "&TEXT(EOMONTH(BeginDate,12),"yyy") -> Pretax Operating ROA in 2022 | J32: =VLOOKUP(DataID,DataRange,Data!$AF$2,FALSE) -> 0.00%
D33: ="Budget "&B78&" in "&TEXT(EOMONTH(BeginDate,24),"yyy") -> Budget Pretax Operating ROA in 2023 | J33: =VLOOKUP(DataID,DataRange,Data!$AG$2,FALSE) -> 0.00%
D34: ="Change in "&B78 -> Change in Pretax Operating ROA | J34: =VLOOKUP(DataID,DataRange,Data!$AH$2,FALSE) -> 0.00%
B37: Comments/Observations:
B72: N2 | C72: =EOMONTH(BeginDate,1) -> 2022-01-31 | D72: =EOMONTH(C72,1) -> 2022-02-28 | E72: 2022-03-31 | F72: 2022-04-30 | G72: 2022-05-31 | H72: 2022-06-30 | I72: 2022-07-31 | J72: 2022-08-31 | K72: 2022-09-30 | L72: 2022-10-31 | M72: 2022-11-30 | N72: 2022-12-31 | O72: 2023-01-31 | P72: 2023-02-28 | Q72: 2023-03-31 | R72: 2023-04-30 | S72: 2023-05-31 | T72: 2023-06-30 | U72: 2023-07-31 | V72: 2023-08-31 | W72: 2023-09-30 | X72: 2023-10-31 | Y72: 2023-11-30 | Z72: 2023-12-31
B73: Actual YTD | C73: =IF(ShowEnd=FALSE,"",VLOOKUP(DataID,DataRange,Data!F$2,FALSE)) -> 0.00% | D73: =IF(ShowEnd=FALSE,"",VLOOKUP(DataID,DataRange,Data!G$2,FALSE)) -> 0.00% | E73: =IF(ShowEnd=FALSE,"",VLOOKUP(DataID,DataRange,Data!H$2,FALSE)) -> 0.00% | F73: =IF(ShowEnd=FALSE,"",VLOOKUP(DataID,DataRange,Data!I$2,FALSE)) -> 0.00% | G73: =IF(ShowEnd=FALSE,"",VLOOKUP(DataID,DataRange,Data!J$2,FALSE)) -> 0.00% | H73: =IF(ShowEnd=FALSE,"",VLOOKUP(DataID,DataRange,Data!K$2,FALSE)) -> 0.00% | I73: =IF(ShowEnd=FALSE,"",VLOOKUP(DataID,DataRange,Data!L$2,FALSE)) -> 0.00% | J73: =IF(ShowEnd=FALSE,"",VLOOKUP(DataID,DataRange,Data!M$2,FALSE)) -> 0.00% | K73: =IF(ShowEnd=FALSE,"",VLOOKUP(DataID,DataRange,Data!N$2,FALSE)) -> 0.00% | L73: =IF(ShowEnd=FALSE,"",VLOOKUP(DataID,DataRange,Data!O$2,FALSE)) -> 0.00% | M73: =IF(ShowEnd=FALSE,"",VLOOKUP(DataID,DataRange,Data!P$2,FALSE)) -> 0.00% | N73: =IF(ShowEnd=FALSE,"",VLOOKUP(DataID,DataRange,Data!Q$2,FALSE)) -> 0.00%
B74: Budget YTD | O74: =IF(ShowEnd=FALSE,"",VLOOKUP(DataID,DataRange,Data!S$2,FALSE)) -> 0.00% | P74: =IF(ShowEnd=FALSE,"",VLOOKUP(DataID,DataRange,Data!T$2,FALSE)) -> 0.00% | Q74: =IF(ShowEnd=FALSE,"",VLOOKUP(DataID,DataRange,Data!U$2,FALSE)) -> 0.00% | R74: =IF(ShowEnd=FALSE,"",VLOOKUP(DataID,DataRange,Data!V$2,FALSE)) -> 0.00% | S74: =IF(ShowEnd=FALSE,"",VLOOKUP(DataID,DataRange,Data!W$2,FALSE)) -> 0.00% | T74: =IF(ShowEnd=FALSE,"",VLOOKUP(DataID,DataRange,Data!X$2,FALSE)) -> 0.00% | U74: =IF(ShowEnd=FALSE,"",VLOOKUP(DataID,DataRange,Data!Y$2,FALSE)) -> 0.00% | V74: =IF(ShowEnd=FALSE,"",VLOOKUP(DataID,DataRange,Data!Z$2,FALSE)) -> 0.00% | W74: =IF(ShowEnd=FALSE,"",VLOOKUP(DataID,DataRange,Data!AA$2,FALSE)) -> 0.00% | X74: =IF(ShowEnd=FALSE,"",VLOOKUP(DataID,DataRange,Data!AB$2,FALSE)) -> 0.00% | Y74: =IF(ShowEnd=FALSE,"",VLOOKUP(DataID,DataRange,Data!AC$2,FALSE)) -> 0.00% | Z74: =IF(ShowEnd=FALSE,"",VLOOKUP(DataID,DataRange,Data!AD$2,FALSE)) -> 0.00%
B75: Actual Avg | C75: =IF(ShowAvg=FALSE,"",VLOOKUP(DataID,DataRange,Data!AF$2,FALSE)) -> 0.00% | D75: =C75 -> 0.00% | E75: 0.00% | F75: 0.00% | G75: 0.00% | H75: 0.00% | I75: 0.00% | J75: 0.00% | K75: 0.00% | L75: 0.00% | M75: 0.00% | N75: 0.00%
B76: Budget Avg | O76: =IF(ShowAvg=FALSE,"",VLOOKUP(DataID,DataRange,Data!AG$2,FALSE)) -> 0.00% | P76: =O76 -> 0.00% | Q76: =P76 -> 0.00% | R76: 0.00% | S76: 0.00% | T76: 0.00% | U76: 0.00% | V76: 0.00% | W76: 0.00% | X76: 0.00% | Y76: 0.00% | Z76: 0.00%
B78: =VLOOKUP(DataID,DataRange,Data!$C$2,FALSE) -> Pretax Operating ROA
B80: ; Shaded Area = Annual Average
B81: =IF(ShowAvg=FALSE,_xlfn.CONCAT(B78,B79),_xlfn.CONCAT(B78,B79,B80)) -> Pretax Operating ROA; Shaded Area = Annual Average
B83: TRUE | C83: Show Avg
B84: TRUE | C84: Show End
B86: =MIN(C73:Z76) -> 0.00% | C86: 90% | D86: -3 | E86: =ROUNDDOWN(B86*C86,-D86) -> 0.00% | F86: <--ChartMin
B87: =MAX(C73:Z76) -> 0.00% | C87: 110% | D87: -3 | E87: =ROUNDUP(B87*C87,-D87) -> 0.00% | F87: <--ChartMax

Sheet RateVolData (hidden)
C2: 22 Actual | D2: 23 Budget | F2: Change | G2: Yield | H2: Cost | I2: Spread | K2: Impact | Q2: Alloc R x V Var
A3: B1 | B3: Lns | C3: =IFERROR(AVERAGE(Data!E8:Q8),0) -> 0 | D3: =IFERROR(AVERAGE(Data!Q8,Data!S8:AD8),0) -> 0 | F3: =D3-C3 -> 0 | G3: =C13 -> 0.00% | H3: =C14 -> 0.00% | I3: =G3-H3 -> 0.00% | K3: =F3*I3+R3 -> 0 | L3: Change in Avg Bal x Prior Year Spread | Q3: =IFERROR(D3/SUM($D$3:$D$11),0) -> 0.0% | R3: =Q3*$R$18 -> 0
B4: Surplus | C4: =IFERROR(AVERAGE(Data!E9:Q9),0) -> 0 | D4: =IFERROR(AVERAGE(Data!Q9,Data!S9:AD9),0) -> 0 | F4: =D4-C4 -> 0 | G4: =C14 -> 0.00% | H4: =$H$3 -> 0.00% | I4: =G4-H4 -> 0.00% | K4: =F4*I4+R4 -> 0 | L4: Change in Avg Bal x Prior Year Spread | Q4: =IFERROR(D4/SUM($D$3:$D$11),0) -> 0.0% | R4: =Q4*$R$18 -> 0
B5: LLR | C5: =IFERROR(AVERAGE(Data!E10:Q10),0) -> 0 | D5: =IFERROR(AVERAGE(Data!Q10,Data!S10:AD10),0) -> 0 | F5: =D5-C5 -> 0 | G5: =$H$3 -> 0.00% | H5: 0.00% | I5: 0.00% | K5: 0 | L5: Change in Avg Bal x Prior Year Spread | Q5: 0.0% | R5: 0
B6: NEA | C6: =IFERROR(AVERAGE(Data!E11:Q11),0) -> 0 | D6: =IFERROR(AVERAGE(Data!Q11,Data!S11:AD11),0) -> 0 | F6: =D6-C6 -> 0 | G6: 0.00% | H6: =$H$3 -> 0.00% | I6: 0.00% | K6: 0 | L6: Change in Avg Bal x Prior Year Spread | Q6: 0.0% | R6: 0
A8: B6 | B8: Rel Bal | C8: =IFERROR(AVERAGE(Data!E14:Q14),0) -> 0 | D8: =IFERROR(AVERAGE(Data!Q14,Data!S14:AD14),0) -> 0 | F8: =D8-C8 -> 0 | G8: =$H$3 -> 0.00% | H8: =C15 -> 0.00% | I8: =G8-H8 -> 0.00% | K8: =F8*I8+R8 -> 0 | L8: Change in Avg Bal x Prior Year Spread | Q8: =IFERROR(D8/SUM($D$3:$D$11),0) -> 0.0% | R8: 0
A9: B7 | B9: RS Bal | C9: =IFERROR(AVERAGE(Data!E15:Q15),0) -> 0 | D9: =IFERROR(AVERAGE(Data!Q15,Data!S15:AD15),0) -> 0 | F9: =D9-C9 -> 0 | G9: =$H$3 -> 0.00% | H9: =C16 -> 0.00% | I9: =G9-H9 -> 0.00% | K9: =F9*I9+R9 -> 0 | L9: Change in Avg Bal x Prior Year Spread | Q9: =IFERROR(D9/SUM($D$3:$D$11),0) -> 0.0% | R9: 0
B10: Other | C10: =IFERROR(AVERAGE(Data!E16:Q16),0) -> 0 | D10: =IFERROR(AVERAGE(Data!Q16,Data!S16:AD16),0) -> 0 | F10: =D10-C10 -> 0 | G10: =$H$3 -> 0.00% | H10: 0.00% | I10: 0.00% | K10: 0 | L10: Change in Avg Bal x Prior Year Spread | Q10: 0.0% | R10: 0
B11: Cap | C11: =IFERROR(AVERAGE(Data!E17:Q17),0) -> 0 | D11: =IFERROR(AVERAGE(Data!Q17,Data!S17:AD17),0) -> 0 | F11: =D11-C11 -> 0 | G11: =$H$3 -> 0.00% | H11: 0.00% | I11: 0.00% | K11: 0 | L11: Change in Avg Bal x Prior Year Spread | Q11: 0.0% | R11: 0
A13: R1 | B13: LY | C13: =IFERROR(Data!AF22/C3,0) -> 0.00% | D13: =IFERROR(Data!AG22/D3,0) -> 0.00% | F13: =D13-C13 -> 0.00% | K13: =F13*D3 -> 0 | L13: Change in Rate X Cur Year Avg
A14: R2 | B14: SFY | C14: =IFERROR(Data!AF23/C4,0) -> 0.00% | D14: =IFERROR(Data!AG23/D4,0) -> 0.00% | F14: =D14-C14 -> 0.00% | K14: =F14*D4 -> 0 | L14: Change in Rate X Cur Year Avg
A15: R3 | B15: Rel | C15: =IFERROR(Data!AF24/C8,0) -> 0.00% | D15: =IFERROR(Data!AG24/D8,0) -> 0.00% | F15: =D15-C15 -> 0.00% | K15: =-F15*D8 -> 0 | L15: Change in Rate X Cur Year Avg
A16: R4 | B16: RS | C16: =IFERROR(Data!AF25/C9,0) -> 0.00% | D16: =IFERROR(Data!AG25/D9,0) -> 0.00% | F16: =D16-C16 -> 0.00% | K16: =-F16*D9 -> 0 | L16: Change in Rate X Cur Year Avg
B18: Net Int Inc | C18: =Data!AF26 -> 0 | D18: =Data!AG26 -> 0 | F18: =D18-C18 -> 0 | K18: =SUM(K3:K17) -> 0 | L18: =F18-K18 -> 0
B20: NII | C20: =Data!AF28 -> 0 | D20: =Data!AG28 -> 0 | F20: =D20-C20 -> 0 | K20: =D20-C20 -> 0 | L20: =ROUND(K20-F20,0) -> 0
B22: NR | C22: =C18+C20 -> 0 | D22: =D18+D20 -> 0 | F22: =D22-C22 -> 0 | K22: =D22-C22 -> 0
B24: NIE | C24: =Data!AF29 -> 0 | D24: =Data!AG29 -> 0 | F24: =D24-C24 -> 0 | K24: =-F24 -> 0 | L24: =ROUND(K24+F24,0) -> 0
B26: NCO | C26: =Data!AF31 -> 0 | D26: =Data!AG31 -> 0 | F26: =D26-C26 -> 0 | K26: =-F26 -> 0 | L26: =ROUND(K26+F26,0) -> 0
B27: PLL | C27: =Data!AF32 -> 0 | D27: =Data!AG32 -> 0 | F27: =D27-C27 -> 0 | K27: =-F27 -> 0 | L27: =ROUND(K27+F27,0) -> 0
B29: Net Inc | C29: =C22-C24-C27 -> 0 | D29: =D22-D24-D27 -> 0 | F29: =D29-C29 -> 0 | K29: =SUM(K18,K20:K20,K24,K27) -> 0 | L29: =ROUND(K29-F29,0) -> 0
B30: Test | C30: =ROUND(C22-C24-C27-C29,0) -> 0 | D30: =ROUND(D22-D24-D27-D29,0) -> 0 | F30: =ROUND(F22-F24-F27-F29,0) -> 0
